Workbook

Sheet 人员名单
A1: 云南省广播电视局2021年事业单位公开招聘工作人员综合成绩
A2: 招考单位名称 | B2: 报考职位 | C2: 报考职位代码 | D2: 准考证 | E2: 笔试成绩 | F2: （笔试成绩÷笔试总分×100）×50% | G2: 面试成绩 | H2: 面试成绩 ×50% | I2: 综合成绩 | J2: 排名 | K2: 是否进入 体检环节
A3: 云南省广播电视局安全播出监测中心 | B3: 广播电视工程 | C3: 15399099157001001 | D3: 3153993310202 | E3: 217.50 | F3: 36.25 | G3: 83.6 | H3: 41.80 | I3: 78.05 | J3: 1 | K3: 是
A4: 云南省广播电视局安全播出监测中心 | B4: 广播电视工程 | C4: 15399099157001001 | D4: 3153993309329 | E4: 211.50 | F4: 35.25 | G4: 82.8 | H4: 41.40 | I4: 76.65 | J4: 2 | K4: 是
A5: 云南省广播电视局安全播出监测中心 | B5: 广播电视工程 | C5: 15399099157001001 | D5: 3153993206218 | E5: 206.50 | F5: 34.42 | G5: 84.2 | H5: 42.10 | I5: 76.52 | J5: 3 | K5: 是
A6: 云南省广播电视局安全播出监测中心 | B6: 广播电视工程 | C6: 15399099157001001 | D6: 3153993309915 | E6: 211.00 | F6: 35.17 | G6: 80.6 | H6: 40.30 | I6: 75.47 | J6: 4 | K6: 否
A7: 云南省广播电视局安全播出监测中心 | B7: 广播电视工程 | C7: 15399099157001001 | D7: 3153993313623 | E7: 205.00 | F7: 34.17 | G7: 82.2 | H7: 41.10 | I7: 75.27 | J7: 5 | K7: 否
A8: 云南省广播电视局安全播出监测中心 | B8: 广播电视工程 | C8: 15399099157001001 | D8: 3153993310321 | E8: 205.00 | F8: 34.17 | G8: 81.6 | H8: 40.80 | I8: 74.97 | J8: 6 | K8: 否
A9: 云南省广播电视局安全播出监测中心 | B9: 广播电视工程 | C9: 15399099157001001 | D9: 3153993309624 | E9: 206.00 | F9: 34.33 | G9: 79 | H9: 39.50 | I9: 73.83 | J9: 7 | K9: 否
A10: 云南省广播电视局保山702台 | B10: 会计 | C10: 15399099157005001 | D10: 1153991503117 | E10: 211.50 | F10: 35.25 | G10: 81.4 | H10: 40.70 | I10: 75.95 | J10: 1 | K10: 是
A11: 云南省广播电视局保山702台 | B11: 会计 | C11: 15399099157005001 | D11: 1153991501121 | E11: 203.50 | F11: 33.92 | G11: 78.2 | H11: 39.10 | I11: 73.02 | J11: 2 | K11: 否
A12: 云南省广播电视局沧源中波台 | B12: 文秘 | C12: 15399099157035001 | D12: 1153991501424 | E12: 200.00 | F12: 33.33 | G12: 82.6 | H12: 41.30 | I12: 74.63 | J12: 1 | K12: 是
A13: 云南省广播电视局沧源中波台 | B13: 文秘 | C13: 15399099157035001 | D13: 1153991503917 | E13: 191.00 | F13: 31.83 | G13: 79.7 | H13: 39.85 | I13: 71.68 | J13: 2 | K13: 否
A14: 云南省广播电视局沧源中波台 | B14: 广播电视工程 | C14: 15399099157035002 | D14: 3153993208511 | E14: 157.00 | F14: 26.17 | G14: 81 | H14: 40.50 | I14: 66.67 | J14: 1 | K14: 是
A15: 云南省广播电视局沧源中波台 | B15: 广播电视工程 | C15: 15399099157035002 | D15: 3153993207402 | E15: 156.50 | F15: 26.08 | G15: 77.8 | H15: 38.90 | I15: 64.98 | J15: 2 | K15: 否
A16: 云南省广播电视局大理实验台 | B16: 会计 | C16: 15399099157012001 | D16: 1153991503422 | E16: 208.00 | F16: 34.67 | G16: 79.2 | H16: 39.60 | I16: 74.27 | J16: 1 | K16: 是
A17: 云南省广播电视局大理实验台 | B17: 会计 | C17: 15399099157012001 | D17: 1153991501928 | E17: 207.50 | F17: 34.58 | G17: 78.04 | H17: 39.02 | I17: 73.60 | J17: 2 | K17: 否
A18: 云南省广播电视局德宏705台 | B18: 会计 | C18: 15399099157006001 | D18: 1153991502818 | E18: 204.00 | F18: 34.00 | G18: 79.8 | H18: 39.90 | I18: 73.90 | J18: 1 | K18: 是
A19: 云南省广播电视局德宏705台 | B19: 会计 | C19: 15399099157006001 | D19: 1153991500926 | E19: 201.50 | F19: 33.58 | G19: 77.3 | H19: 38.65 | I19: 72.23 | J19: 2 | K19: 否
A20: 云南省广播电视局迪庆实验台 | B20: 文秘 | C20: 15399099157011001 | D20: 1153991502430 | E20: 204.00 | F20: 34.00 | G20: 85.2 | H20: 42.60 | I20: 76.60 | J20: 1 | K20: 是
A21: 云南省广播电视局迪庆实验台 | B21: 文秘 | C21: 15399099157011001 | D21: 1153991505711 | E21: 209.00 | F21: 34.83 | G21: 80 | H21: 40.00 | I21: 74.83 | J21: 2 | K21: 否
A22: 云南省广播电视局迪庆实验台 | B22: 广播电视工程 | C22: 15399099157011002 | D22: 3153993204216 | E22: 150.00 | F22: 25.00 | G22: 80.6 | H22: 40.30 | I22: 65.30 | J22: 1 | K22: 是
A23: 云南省广播电视局迪庆实验台 | B23: 广播电视工程 | C23: 15399099157011002 | D23: 3153993207816 | E23: 134.50 | F23: 22.42 | G23: 79.4 | H23: 39.70 | I23: 62.12 | J23: 2 | K23: 否
A24: 云南省广播电视局迪庆中波台 | B24: 会计 | C24: 15399099157009001 | D24: 1153991505807 | E24: 209.00 | F24: 34.83 | G24: 79.1 | H24: 39.55 | I24: 74.38 | J24: 1 | K24: 是
A25: 云南省广播电视局迪庆中波台 | B25: 会计 | C25: 15399099157009001 | D25: 1153991500322 | E25: 198.50 | F25: 33.08 | G25: 82.2 | H25: 41.10 | I25: 74.18 | J25: 2 | K25: 否
A26: 云南省广播电视局迪庆中波台 | B26: 文秘 | C26: 15399099157009002 | D26: 1153991504306 | E26: 206.50 | F26: 34.42 | G26: 82.3 | H26: 41.15 | I26: 75.57 | J26: 1 | K26: 是
A27: 云南省广播电视局福贡中波台 | B27: 会计 | C27: 15399099157033001 | D27: 1153991505127 | E27: 180.50 | F27: 30.08 | G27: 78.3 | H27: 39.15 | I27: 69.23 | J27: 1 | K27: 是
A28: 云南省广播电视局福贡中波台 | B28: 会计 | C28: 15399099157033001 | D28: 1153991505730 | E28: 169.50 | F28: 28.25 | G28: 76.2 | H28: 38.10 | I28: 66.35 | J28: 2 | K28: 否
A29: 云南省广播电视局福贡中波台 | B29: 文秘 | C29: 15399099157033002 | D29: 1153991500815 | E29: 152.00 | F29: 25.33 | G29: 80 | H29: 40.00 | I29: 65.33 | J29: 1 | K29: 是
A30: 云南省广播电视局福贡中波台 | B30: 文秘 | C30: 15399099157033002 | D30: 1153991501820 | E30: 136.50 | F30: 22.75 | G30: 77.7 | H30: 38.85 | I30: 61.60 | J30: 2 | K30: 否
A31: 云南省广播电视局福贡中波台 | B31: 广播电视工程 | C31: 15399099157033003 | D31: 3153993208104 | E31: 120.00 | F31: 20.00 | G31: 77.8 | H31: 38.90 | I31: 58.90 | J31: 1 | K31: 是
A32: 云南省广播电视局富宁中波台 | B32: 文秘 | C32: 15399099157021001 | D32: 1153991504101 | E32: 205.50 | F32: 34.25 | G32: 81.8 | H32: 40.90 | I32: 75.15 | J32: 1 | K32: 是
A33: 云南省广播电视局富宁中波台 | B33: 文秘 | C33: 15399099157021001 | D33: 1153991502622 | E33: 193.00 | F33: 32.17 | G33: 79.4 | H33: 39.70 | I33: 71.87 | J33: 2 | K33: 否
A34: 云南省广播电视局富宁中波台 | B34: 广播电视工程 | C34: 15399099157021002 | D34: 3153993204811 | E34: 191.00 | F34: 31.83 | G34: 81 | H34: 40.50 | I34: 72.33 | J34: 1 | K34: 是
A35: 云南省广播电视局富宁中波台 | B35: 广播电视工程 | C35: 15399099157021002 | D35: 3153993208519 | E35: 145.00 | F35: 24.17 | G35: 79.8 | H35: 39.90 | I35: 64.07 | J35: 2 | K35: 否
A36: 云南省广播电视局贡山中波台 | B36: 广播电视工程 | C36: 15399099157034001 | D36: 3153993204308 | E36: 133.00 | F36: 22.17 | G36: 77.8 | H36: 38.90 | I36: 61.07 | J36: 1 | K36: 是
A37: 云南省广播电视局河口中波台 | B37: 文秘 | C37: 15399099157017001 | D37: 1153991500414 | E37: 183.00 | F37: 30.50 | G37: 77.9 | H37: 38.95 | I37: 69.45 | J37: 1 | K37: 是
A38: 云南省广播电视局河口中波台 | B38: 文秘 | C38: 15399099157017001 | D38: 1153991503910 | E38: 168.50 | F38: 28.08 | G38: 0 | H38: 0.00 | I38: 28.08 | J38: 2 | K38: 否
A39: 云南省广播电视局河口中波台 | B39: 广播电视工程 | C39: 15399099157017002 | D39: 3153993208317 | E39: 181.50 | F39: 30.25 | G39: 82.8 | H39: 41.40 | I39: 71.65 | J39: 1 | K39: 是
A40: 云南省广播电视局河口中波台 | B40: 广播电视工程 | C40: 15399099157017002 | D40: 3153993205426 | E40: 173.00 | F40: 28.83 | G40: 82.8 | H40: 41.40 | I40: 70.23 | J40: 2 | K40: 否
A41: 云南省广播电视局江城中波台 | B41: 文秘 | C41: 15399099157024001 | D41: 1153991502808 | E41: 209.00 | F41: 34.83 | G41: 81.2 | H41: 40.60 | I41: 75.43 | J41: 1 | K41: 是
A42: 云南省广播电视局江城中波台 | B42: 文秘 | C42: 15399099157024001 | D42: 1153991503415 | E42: 173.00 | F42: 28.83 | G42: 75.2 | H42: 37.60 | I42: 66.43 | J42: 2 | K42: 否
A43: 云南省广播电视局金平中波台 | B43: 会计 | C43: 15399099157016001 | D43: 1153991505003 | E43: 214.00 | F43: 35.67 | G43: 79.4 | H43: 39.70 | I43: 75.37 | J43: 1 | K43: 是
A44: 云南省广播电视局金平中波台 | B44: 会计 | C44: 15399099157016001 | D44: 1153991505109 | E44: 193.00 | F44: 32.17 | G44: 79.4 | H44: 39.70 | I44: 71.87 | J44: 2 | K44: 否
A45: 云南省广播电视局金平中波台 | B45: 文秘 | C45: 15399099157016002 | D45: 1153991503409 | E45: 185.50 | F45: 30.92 | G45: 80 | H45: 40.00 | I45: 70.92 | J45: 1 | K45: 是
A46: 云南省广播电视局金平中波台 | B46: 文秘 | C46: 15399099157016002 | D46: 1153991503630 | E46: 176.00 | F46: 29.33 | G46: 78.5 | H46: 39.25 | I46: 68.58 | J46: 2 | K46: 否
A47: 云南省广播电视局景东695台 | B47: 文秘 | C47: 15399099157023001 | D47: 1153991500219 | E47: 202.50 | F47: 33.75 | G47: 82 | H47: 41.00 | I47: 74.75 | J47: 1 | K47: 是
A48: 云南省广播电视局景东695台 | B48: 文秘 | C48: 15399099157023001 | D48: 1153991502001 | E48: 198.00 | F48: 33.00 | G48: 78.4 | H48: 39.20 | I48: 72.20 | J48: 2 | K48: 否
A49: 云南省广播电视局开远实验台 | B49: 文秘 | C49: 15399099157013001 | D49: 1153991505618 | E49: 210.50 | F49: 35.08 | G49: 79.9 | H49: 39.95 | I49: 75.03 | J49: 1 | K49: 是
A50: 云南省广播电视局开远实验台 | B50: 文秘 | C50: 15399099157013001 | D50: 1153991502010 | E50: 198.00 | F50: 33.00 | G50: 78.8 | H50: 39.40 | I50: 72.40 | J50: 2 | K50: 否
A51: 云南省广播电视局澜沧中波台 | B51: 会计 | C51: 15399099157026001 | D51: 1153991502109 | E51: 209.50 | F51: 34.92 | G51: 80.1 | H51: 40.05 | I51: 74.97 | J51: 1 | K51: 是
A52: 云南省广播电视局澜沧中波台 | B52: 会计 | C52: 15399099157026001 | D52: 1153991502101 | E52: 198.50 | F52: 33.08 | G52: 74.7 | H52: 37.35 | I52: 70.43 | J52: 2 | K52: 否
A53: 云南省广播电视局澜沧中波台 | B53: 文秘 | C53: 15399099157026002 | D53: 1153991505402 | E53: 202.00 | F53: 33.67 | G53: 80.7 | H53: 40.35 | I53: 74.02 | J53: 1 | K53: 是
A54: 云南省广播电视局澜沧中波台 | B54: 文秘 | C54: 15399099157026002 | D54: 1153991501320 | E54: 179.50 | F54: 29.92 | G54: 76.3 | H54: 38.15 | I54: 68.07 | J54: 2 | K54: 否
A55: 云南省广播电视局丽江704台 | B55: 文秘 | C55: 15399099157007001 | D55: 1153991503719 | E55: 215.50 | F55: 35.92 | G55: 82 | H55: 41.00 | I55: 76.92 | J55: 1 | K55: 是
A56: 云南省广播电视局丽江704台 | B56: 文秘 | C56: 15399099157007001 | D56: 1153991501418 | E56: 216.00 | F56: 36.00 | G56: 81.6 | H56: 40.80 | I56: 76.80 | J56: 2 | K56: 否
A57: 云南省广播电视局丽江704台 | B57: 广播电视工程 | C57: 15399099157007002 | D57: 3153993204510 | E57: 194.50 | F57: 32.42 | G57: 81.8 | H57: 40.90 | I57: 73.32 | J57: 1 | K57: 是
A58: 云南省广播电视局丽江704台 | B58: 广播电视工程 | C58: 15399099157007002 | D58: 3153993208008 | E58: 195.00 | F58: 32.50 | G58: 81.2 | H58: 40.60 | I58: 73.10 | J58: 2 | K58: 否
A59: 云南省广播电视局丽江704台 | B59: 广播电视工程 | C59: 15399099157007002 | D59: 3153993208716 | E59: 195.00 | F59: 32.50 | G59: 80.6 | H59: 40.30 | I59: 72.80 | J59: 3 | K59: 否
A60: 云南省广播电视局陇川中波台 | B60: 文秘 | C60: 15399099157031001 | D60: 1153991503102 | E60: 182.50 | F60: 30.42 | G60: 82.1 | H60: 41.05 | I60: 71.47 | J60: 1 | K60: 是
A61: 云南省广播电视局陇川中波台 | B61: 文秘 | C61: 15399099157031001 | D61: 1153991500512 | E61: 173.00 | F61: 28.83 | G61: 80.6 | H61: 40.30 | I61: 69.13 | J61: 2 | K61: 否
A62: 云南省广播电视局陇川中波台 | B62: 广播电视工程 | C62: 15399099157031002 | D62: 3153993206106 | E62: 165.50 | F62: 27.58 | G62: 79 | H62: 39.50 | I62: 67.08 | J62: 1 | K62: 是
A63: 云南省广播电视局陇川中波台 | B63: 广播电视工程 | C63: 15399099157031002 | D63: 3153993205828 | E63: 138.00 | F63: 23.00 | G63: 83.6 | H63: 41.80 | I63: 64.80 | J63: 2 | K63: 否
A64: 云南省广播电视局绿春中波台 | B64: 文秘 | C64: 15399099157018001 | D64: 1153991503708 | E64: 177.50 | F64: 29.58 | G64: 78.6 | H64: 39.30 | I64: 68.88 | J64: 1 | K64: 是
A65: 云南省广播电视局绿春中波台 | B65: 文秘 | C65: 15399099157018001 | D65: 1153991504130 | E65: 169.50 | F65: 28.25 | G65: 77.6 | H65: 38.80 | I65: 67.05 | J65: 2 | K65: 否
A66: 云南省广播电视局绿春中波台 | B66: 广播电视工程 | C66: 15399099157018002 | D66: 3153993205506 | E66: 166.00 | F66: 27.67 | G66: 81.6 | H66: 40.80 | I66: 68.47 | J66: 1 | K66: 是
A67: 云南省广播电视局绿春中波台 | B67: 广播电视工程 | C67: 15399099157018002 | D67: 3153993205505 | E67: 164.00 | F67: 27.33 | G67: 79.2 | H67: 39.60 | I67: 66.93 | J67: 2 | K67: 否
A68: 云南省广播电视局麻栗坡中波台 | B68: 文秘 | C68: 15399099157019001 | D68: 1153991505229 | E68: 194.00 | F68: 32.33 | G68: 83.1 | H68: 41.55 | I68: 73.88 | J68: 1 | K68: 是
A69: 云南省广播电视局麻栗坡中波台 | B69: 文秘 | C69: 15399099157019001 | D69: 1153991500705 | E69: 180.00 | F69: 30.00 | G69: 79.1 | H69: 39.55 | I69: 69.55 | J69: 2 | K69: 否
A70: 云南省广播电视局麻栗坡中波台 | B70: 广播电视工程 | C70: 15399099157019002 | D70: 3153993205914 | E70: 201.00 | F70: 33.50 | G70: 79.2 | H70: 39.60 | I70: 73.10 | J70: 1 | K70: 是
A71: 云南省广播电视局麻栗坡中波台 | B71: 广播电视工程 | C71: 15399099157019002 | D71: 3153993207628 | E71: 191.00 | F71: 31.83 | G71: 81.6 | H71: 40.80 | I71: 72.63 | J71: 2 | K71: 是
A72: 云南省广播电视局麻栗坡中波台 | B72: 广播电视工程 | C72: 15399099157019002 | D72: 3153993208301 | E72: 190.50 | F72: 31.75 | G72: 81 | H72: 40.50 | I72: 72.25 | J72: 3 | K72: 是
A73: 云南省广播电视局麻栗坡中波台 | B73: 广播电视工程 | C73: 15399099157019002 | D73: 3153993204930 | E73: 172.50 | F73: 28.75 | G73: 80.4 | H73: 40.20 | I73: 68.95 | J73: 4 | K73: 否
A74: 云南省广播电视局麻栗坡中波台 | B74: 广播电视工程 | C74: 15399099157019002 | D74: 3153993208411 | E74: 170.50 | F74: 28.42 | G74: 78.6 | H74: 39.30 | I74: 67.72 | J74: 5 | K74: 否
A75: 云南省广播电视局马关中波台 | B75: 会计 | C75: 15399099157020001 | D75: 1153991500729 | E75: 209.50 | F75: 34.92 | G75: 77 | H75: 38.50 | I75: 73.42 | J75: 1 | K75: 是
A76: 云南省广播电视局马关中波台 | B76: 会计 | C76: 15399099157020001 | D76: 1153991501105 | E76: 192.50 | F76: 32.08 | G76: 79.56 | H76: 39.78 | I76: 71.86 | J76: 2 | K76: 否
A77: 云南省广播电视局马关中波台 | B77: 文秘 | C77: 15399099157020002 | D77: 1153991500912 | E77: 191.00 | F77: 31.83 | G77: 80.4 | H77: 40.20 | I77: 72.03 | J77: 1 | K77: 是
A78: 云南省广播电视局马关中波台 | B78: 文秘 | C78: 15399099157020002 | D78: 1153991500417 | E78: 191.00 | F78: 31.83 | G78: 80.3 | H78: 40.15 | I78: 71.98 | J78: 2 | K78: 否
A79: 云南省广播电视局马关中波台 | B79: 文秘 | C79: 15399099157020002 | D79: 1153991500726 | E79: 187.50 | F79: 31.25 | G79: 80.8 | H79: 40.40 | I79: 71.65 | J79: 3 | K79: 否
A80: 云南省广播电视局勐腊中波台 | B80: 文秘 | C80: 15399099157028001 | D80: 1153991500913 | E80: 153.50 | F80: 25.58 | G80: 78.9 | H80: 39.45 | I80: 65.03 | J80: 1 | K80: 是
A81: 云南省广播电视局勐腊中波台 | B81: 文秘 | C81: 15399099157028001 | D81: 1153991502021 | E81: 157.00 | F81: 26.17 | G81: 0 | H81: 0.00 | I81: 26.17 | J81: 2 | K81: 否
A82: 云南省广播电视局勐腊中波台 | B82: 广播电视工程 | C82: 15399099157028002 | D82: 3153993207721 | E82: 178.50 | F82: 29.75 | G82: 80.2 | H82: 40.10 | I82: 69.85 | J82: 1 | K82: 是
A83: 云南省广播电视局勐腊中波台 | B83: 广播电视工程 | C83: 15399099157028002 | D83: 3153993207707 | E83: 148.00 | F83: 24.67 | G83: 74.9 | H83: 37.45 | I83: 62.12 | J83: 2 | K83: 否
A84: 云南省广播电视局孟连中波台 | B84: 会计 | C84: 15399099157025001 | D84: 1153991500925 | E84: 197.50 | F84: 32.92 | G84: 78.2 | H84: 39.10 | I84: 72.02 | J84: 1 | K84: 是
A85: 云南省广播电视局孟连中波台 | B85: 会计 | C85: 15399099157025001 | D85: 1153991503828 | E85: 166.00 | F85: 27.67 | G85: 75.4 | H85: 37.70 | I85: 65.37 | J85: 2 | K85: 否
A86: 云南省广播电视局怒江中波台 | B86: 文秘 | C86: 15399099157008001 | D86: 1153991500305 | E86: 204.00 | F86: 34.00 | G86: 82.2 | H86: 41.10 | I86: 75.10 | J86: 1 | K86: 是
A87: 云南省广播电视局怒江中波台 | B87: 文秘 | C87: 15399099157008001 | D87: 1153991502305 | E87: 193.00 | F87: 32.17 | G87: 81.8 | H87: 40.90 | I87: 73.07 | J87: 2 | K87: 否
A88: 云南省广播电视局怒江中波台 | B88: 广播电视工程 | C88: 15399099157008002 | D88: 3153993208725 | E88: 181.50 | F88: 30.25 | G88: 79.8 | H88: 39.90 | I88: 70.15 | J88: 1 | K88: 是
A89: 云南省广播电视局怒江中波台 | B89: 广播电视工程 | C89: 15399099157008002 | D89: 3153993205630 | E89: 153.00 | F89: 25.50 | G89: 0 | H89: 0.00 | I89: 25.50 | J89: 2 | K89: 否
A90: 云南省广播电视局普洱701台 | B90: 文秘 | C90: 15399099157022001 | D90: 1153991501611 | E90: 193.00 | F90: 32.17 | G90: 80 | H90: 40.00 | I90: 72.17 | J90: 1 | K90: 是
A91: 云南省广播电视局普洱701台 | B91: 文秘 | C91: 15399099157022001 | D91: 1153991505428 | E91: 192.50 | F91: 32.08 | G91: 79.9 | H91: 39.95 | I91: 72.03 | J91: 2 | K91: 否
A92: 云南省广播电视局普洱701台 | B92: 广播电视工程 | C92: 15399099157022002 | D92: 3153993207425 | E92: 194.50 | F92: 32.42 | G92: 83 | H92: 41.50 | I92: 73.92 | J92: 1 | K92: 是
A93: 云南省广播电视局普洱701台 | B93: 广播电视工程 | C93: 15399099157022002 | D93: 3153993208923 | E93: 185.50 | F93: 30.92 | G93: 80.9 | H93: 40.45 | I93: 71.37 | J93: 2 | K93: 否
A94: 云南省广播电视局瑞丽中波台 | B94: 文秘 | C94: 15399099157030001 | D94: 1153991501302 | E94: 208.00 | F94: 34.67 | G94: 83.5 | H94: 41.75 | I94: 76.42 | J94: 1 | K94: 是
A95: 云南省广播电视局瑞丽中波台 | B95: 文秘 | C95: 15399099157030001 | D95: 1153991500927 | E95: 198.50 | F95: 33.08 | G95: 85.2 | H95: 42.60 | I95: 75.68 | J95: 2 | K95: 否
A96: 云南省广播电视局瑞丽中波台 | B96: 广播电视工程 | C96: 15399099157030022 | D96: 3153993206829 | E96: 179.50 | F96: 29.92 | G96: 79.4 | H96: 39.70 | I96: 69.62 | J96: 1 | K96: 是
A97: 云南省广播电视局瑞丽中波台 | B97: 广播电视工程 | C97: 15399099157030022 | D97: 3153993204411 | E97: 141.50 | F97: 23.58 | G97: 77.8 | H97: 38.90 | I97: 62.48 | J97: 2 | K97: 否
A98: 云南省广播电视局事业发展中心 | B98: 广播电视工程 | C98: 15399099157002001 | D98: 3153993208120 | E98: 202.50 | F98: 33.75 | G98: 82.3 | H98: 41.15 | I98: 74.90 | J98: 1 | K98: 是
A99: 云南省广播电视局事业发展中心 | B99: 广播电视工程 | C99: 15399099157002001 | D99: 3153993206107 | E99: 199.50 | F99: 33.25 | G99: 77.6 | H99: 38.80 | I99: 72.05 | J99: 2 | K99: 否
A100: 云南省广播电视局事业发展中心 | B100: 广播电视工程 | C100: 15399099157002002 | D100: 3153993312714 | E100: 194.50 | F100: 32.42 | G100: 81.1 | H100: 40.55 | I100: 72.97 | J100: 1 | K100: 是
A101: 云南省广播电视局事业发展中心 | B101: 广播电视工程 | C101: 15399099157002002 | D101: 3153993312205 | E101: 183.00 | F101: 30.50 | G101: 0 | H101: 0.00 | I101: 30.50 | J101: 2 | K101: 否
A102: 云南省广播电视局事业发展中心 | B102: 编辑 | C102: 15399099157002003 | D102: 2153991205719 | E102: 222.50 | F102: 37.08 | G102: 81.6 | H102: 40.80 | I102: 77.88 | J102: 1 | K102: 是
A103: 云南省广播电视局事业发展中心 | B103: 编辑 | C103: 15399099157002003 | D103: 2153991205123 | E103: 223.00 | F103: 37.17 | G103: 78.4 | H103: 39.20 | I103: 76.37 | J103: 2 | K103: 是
A104: 云南省广播电视局事业发展中心 | B104: 编辑 | C104: 15399099157002003 | D104: 2153991207507 | E104: 222.50 | F104: 37.08 | G104: 78.3 | H104: 39.15 | I104: 76.23 | J104: 3 | K104: 是
A105: 云南省广播电视局事业发展中心 | B105: 编辑 | C105: 15399099157002003 | D105: 2153991202528 | E105: 219.00 | F105: 36.50 | G105: 79.2 | H105: 39.60 | I105: 76.10 | J105: 4 | K105: 否
A106: 云南省广播电视局事业发展中心 | B106: 编辑 | C106: 15399099157002003 | D106: 2153991200321 | E106: 217.50 | F106: 36.25 | G106: 79.4 | H106: 39.70 | I106: 75.95 | J106: 5 | K106: 否
A107: 云南省广播电视局事业发展中心 | B107: 编辑 | C107: 15399099157002003 | D107: 2153991201923 | E107: 215.50 | F107: 35.92 | G107: 79.6 | H107: 39.80 | I107: 75.72 | J107: 6 | K107: 否
A108: 云南省广播电视局事业发展中心 | B108: 编辑 | C108: 15399099157002003 | D108: 2153991206408 | E108: 211.00 | F108: 35.17 | G108: 78 | H108: 39.00 | I108: 74.17 | J108: 7 | K108: 否
A109: 云南省广播电视局事业发展中心 | B109: 编辑 | C109: 15399099157002004 | D109: 2153991208509 | E109: 217.50 | F109: 36.25 | G109: 81.8 | H109: 40.90 | I109: 77.15 | J109: 1 | K109: 是
A110: 云南省广播电视局事业发展中心 | B110: 编辑 | C110: 15399099157002004 | D110: 2153991207807 | E110: 218.00 | F110: 36.33 | G110: 81.3 | H110: 40.65 | I110: 76.98 | J110: 2 | K110: 是
A111: 云南省广播电视局事业发展中心 | B111: 编辑 | C111: 15399099157002004 | D111: 2153991201016 | E111: 218.00 | F111: 36.33 | G111: 80.6 | H111: 40.30 | I111: 76.63 | J111: 3 | K111: 否
A112: 云南省广播电视局事业发展中心 | B112: 编辑 | C112: 15399099157002004 | D112: 2153991200804 | E112: 225.00 | F112: 37.50 | G112: 77.8 | H112: 38.90 | I112: 76.40 | J112: 4 | K112: 否
A113: 云南省广播电视局事业发展中心 | B113: 编辑 | C113: 15399099157002004 | D113: 2153991204614 | E113: 218.50 | F113: 36.42 | G113: 79.5 | H113: 39.75 | I113: 76.17 | J113: 5 | K113: 否
A114: 云南省广播电视局腾冲中波台 | B114: 会计 | C114: 15399099157029001 | D114: 1153991500826 | E114: 210.00 | F114: 35.00 | G114: 80.46 | H114: 40.23 | I114: 75.23 | J114: 1 | K114: 是
A115: 云南省广播电视局腾冲中波台 | B115: 会计 | C115: 15399099157029001 | D115: 1153991502727 | E115: 199.00 | F115: 33.17 | G115: 79.3 | H115: 39.65 | I115: 72.82 | J115: 2 | K115: 否
A116: 云南省广播电视局文山703台 | B116: 会计 | C116: 15399099157004001 | D116: 1153991502025 | E116: 210.00 | F116: 35.00 | G116: 81.3 | H116: 40.65 | I116: 75.65 | J116: 1 | K116: 是
A117: 云南省广播电视局文山703台 | B117: 会计 | C117: 15399099157004001 | D117: 1153991504425 | E117: 193.00 | F117: 32.17 | G117: 78.6 | H117: 39.30 | I117: 71.47 | J117: 2 | K117: 否
A118: 云南省广播电视局西盟中波台 | B118: 文秘 | C118: 15399099157027001 | D118: 1153991502222 | E118: 153.00 | F118: 25.50 | G118: 78.8 | H118: 39.40 | I118: 64.90 | J118: 1 | K118: 是
A119: 云南省广播电视局西盟中波台 | B119: 文秘 | C119: 15399099157027001 | D119: 1153991504817 | E119: 137.50 | F119: 22.92 | G119: 75.1 | H119: 37.55 | I119: 60.47 | J119: 2 | K119: 否
A120: 云南省广播电视局西盟中波台 | B120: 广播电视工程 | C120: 15399099157027002 | D120: 3153993207408 | E120: 171.00 | F120: 28.50 | G120: 81.4 | H120: 40.70 | I120: 69.20 | J120: 1 | K120: 是
A121: 云南省广播电视局西盟中波台 | B121: 广播电视工程 | C121: 15399099157027002 | D121: 3153993207301 | E121: 152.00 | F121: 25.33 | G121: 80.6 | H121: 40.30 | I121: 65.63 | J121: 2 | K121: 是
A122: 云南省广播电视局西盟中波台 | B122: 广播电视工程 | C122: 15399099157027002 | D122: 3153993205230 | E122: 146.00 | F122: 24.33 | G122: 81.6 | H122: 40.80 | I122: 65.13 | J122: 3 | K122: 是
A123: 云南省广播电视局西盟中波台 | B123: 广播电视工程 | C123: 15399099157027002 | D123: 3153993205927 | E123: 144.50 | F123: 24.08 | G123: 78.6 | H123: 39.30 | I123: 63.38 | J123: 4 | K123: 否
A124: 云南省广播电视局西盟中波台 | B124: 广播电视工程 | C124: 15399099157027002 | D124: 3153993206802 | E124: 133.50 | F124: 22.25 | G124: 76.4 | H124: 38.20 | I124: 60.45 | J124: 5 | K124: 否
A125: 云南省广播电视局西双版纳中波台 | B125: 会计 | C125: 15399099157010001 | D125: 1153991503528 | E125: 201.00 | F125: 33.50 | G125: 79 | H125: 39.50 | I125: 73.00 | J125: 1 | K125: 是
A126: 云南省广播电视局西双版纳中波台 | B126: 会计 | C126: 15399099157010001 | D126: 1153991500625 | E126: 181.50 | F126: 30.25 | G126: 80.2 | H126: 40.10 | I126: 70.35 | J126: 2 | K126: 否
A127: 云南省广播电视局盈江中波台 | B127: 会计 | C127: 15399099157032001 | D127: 1153991501927 | E127: 200.50 | F127: 33.42 | G127: 80.5 | H127: 40.25 | I127: 73.67 | J127: 1 | K127: 是
A128: 云南省广播电视局盈江中波台 | B128: 会计 | C128: 15399099157032001 | D128: 1153991502301 | E128: 201.50 | F128: 33.58 | G128: 79.3 | H128: 39.65 | I128: 73.23 | J128: 2 | K128: 否
A129: 云南省广播电视局盈江中波台 | B129: 文秘 | C129: 15399099157032002 | D129: 1153991503602 | E129: 203.00 | F129: 33.83 | G129: 83.1 | H129: 41.55 | I129: 75.38 | J129: 1 | K129: 是
A130: 云南省广播电视局盈江中波台 | B130: 文秘 | C130: 15399099157032002 | D130: 1153991501821 | E130: 200.00 | F130: 33.33 | G130: 83.2 | H130: 41.60 | I130: 74.93 | J130: 2 | K130: 否
A131: 云南省广播电视局永仁698台 | B131: 文秘 | C131: 15399099157014001 | D131: 1153991504214 | E131: 211.00 | F131: 35.17 | G131: 84.8 | H131: 42.40 | I131: 77.57 | J131: 1 | K131: 是
A132: 云南省广播电视局永仁698台 | B132: 文秘 | C132: 15399099157014001 | D132: 1153991502524 | E132: 204.50 | F132: 34.08 | G132: 82.3 | H132: 41.15 | I132: 75.23 | J132: 2 | K132: 否
A133: 云南省广播电视局元江694台 | B133: 文秘 | C133: 15399099157015001 | D133: 1153991500628 | E133: 202.50 | F133: 33.75 | G133: 82.3 | H133: 41.15 | I133: 74.90 | J133: 1 | K133: 是
A134: 云南省广播电视局元江694台 | B134: 文秘 | C134: 15399099157015001 | D134: 1153991502415 | E134: 191.50 | F134: 31.92 | G134: 80.4 | H134: 40.20 | I134: 72.12 | J134: 2 | K134: 否
A135: 云南省广播电视局元江694台 | B135: 广播电视工程 | C135: 15399099157015002 | D135: 3153993207229 | E135: 207.50 | F135: 34.58 | G135: 81 | H135: 40.50 | I135: 75.08 | J135: 1 | K135: 是
A136: 云南省广播电视局元江694台 | B136: 广播电视工程 | C136: 15399099157015002 | D136: 3153993206617 | E136: 186.50 | F136: 31.08 | G136: 81.6 | H136: 40.80 | I136: 71.88 | J136: 2 | K136: 否
A137: 云南省广播电视局昭通697台 | B137: 会计 | C137: 15399099157003001 | D137: 1153991503611 | E137: 202.50 | F137: 33.75 | G137: 77.5 | H137: 38.75 | I137: 72.50 | J137: 1 | K137: 是
A138: 云南省广播电视局昭通697台 | B138: 会计 | C138: 15399099157003001 | D138: 1153991503111 | E138: 196.50 | F138: 32.75 | G138: 78.56 | H138: 39.28 | I138: 72.03 | J138: 2 | K138: 否
A139: 云南省广播电视局昭通697台 | B139: 广播电视工程 | C139: 15399099157003002 | D139: 3153993205110 | E139: 192.50 | F139: 32.08 | G139: 82.2 | H139: 41.10 | I139: 73.18 | J139: 1 | K139: 是
A140: 云南省广播电视局昭通697台 | B140: 广播电视工程 | C140: 15399099157003002 | D140: 3153993204504 | E140: 185.00 | F140: 30.83 | G140: 81.8 | H140: 40.90 | I140: 71.73 | J140: 2 | K140: 否
A141: 云南省广播电视局镇康中波台 | B141: 文秘 | C141: 15399099157036001 | D141: 1153991501401 | E141: 201.50 | F141: 33.58 | G141: 81 | H141: 40.50 | I141: 74.08 | J141: 1 | K141: 是
A142: 云南省广播电视局镇康中波台 | B142: 文秘 | C142: 15399099157036001 | D142: 1153991501810 | E142: 180.50 | F142: 30.08 | G142: 79.7 | H142: 39.85 | I142: 69.93 | J142: 2 | K142: 否
A143: 云南省广播电视局镇康中波台 | B143: 广播电视工程 | C143: 15399099157036002 | D143: 3153993204127 | E143: 201.00 | F143: 33.50 | G143: 80.6 | H143: 40.30 | I143: 73.80 | J143: 1 | K143: 是
A144: 云南省广播电视局镇康中波台 | B144: 广播电视工程 | C144: 15399099157036002 | D144: 3153993205502 | E144: 177.00 | F144: 29.50 | G144: 81.8 | H144: 40.90 | I144: 70.40 | J144: 2 | K144: 是
A145: 云南省广播电视局镇康中波台 | B145: 广播电视工程 | C145: 15399099157036002 | D145: 3153993207406 | E145: 168.50 | F145: 28.08 | G145: 81 | H145: 40.50 | I145: 68.58 | J145: 3 | K145: 否

Sheet Sheet1
B1: 云南省广播电视局2021年事业单位公开招聘工作人员综合成绩
A2: 准考证号 | B2: 招考单位名称 | C2: 报考职位 | D2: 报考职位代码 | E2: 准考证 | F2: 笔试成绩 | G2: （笔试成绩÷ 笔试总分×100）×50% | H2: 面试成绩 | I2: 面试成绩 ×50% | J2: 综合成绩 | K2: 排名 | L2: 是否进入 体检环节
A3: 3153993206218 | B3: =VLOOKUP(A3,[1]Sheet3!$B$3:$G$145,2,FALSE) -> 云南省广播电视局安全播出监测中心 | C3: =VLOOKUP(A3,[1]Sheet3!$B$3:$G$145,3,FALSE) -> 广播电视工程 | D3: =VLOOKUP(A3,[1]Sheet3!$B$3:$G$145,4,FALSE) -> 15399099157001001 | E3: =VLOOKUP(A3,[1]Sheet3!$B$3:$G$145,1,FALSE) -> 3153993206218 | F3: =VLOOKUP(A3,[2]Sheet1!$CE$2:$CS$1539,15,FALSE) -> 206.50 | G3: =(F3/300*100)*0.5 -> 34.42 | H3: =VLOOKUP(A3,[1]Sheet3!$B$3:$G$145,6,FALSE) -> 84.2 | I3: =H3*0.5 -> 42.10 | J3: =G3+I3 -> 76.52
A4: 3153993310202 | B4: =VLOOKUP(A4,[1]Sheet3!$B$3:$G$145,2,FALSE) -> 云南省广播电视局安全播出监测中心 | C4: =VLOOKUP(A4,[1]Sheet3!$B$3:$G$145,3,FALSE) -> 广播电视工程 | D4: =VLOOKUP(A4,[1]Sheet3!$B$3:$G$145,4,FALSE) -> 15399099157001001 | E4: =VLOOKUP(A4,[1]Sheet3!$B$3:$G$145,1,FALSE) -> 3153993310202 | F4: =VLOOKUP(A4,[2]Sheet1!$CE$2:$CS$1539,15,FALSE) -> 217.50 | G4: 36.25 | H4: =VLOOKUP(A4,[1]Sheet3!$B$3:$G$145,6,FALSE) -> 83.6 | I4: 41.80 | J4: 78.05
A5: 3153993309329 | B5: =VLOOKUP(A5,[1]Sheet3!$B$3:$G$145,2,FALSE) -> 云南省广播电视局安全播出监测中心 | C5: =VLOOKUP(A5,[1]Sheet3!$B$3:$G$145,3,FALSE) -> 广播电视工程 | D5: =VLOOKUP(A5,[1]Sheet3!$B$3:$G$145,4,FALSE) -> 15399099157001001 | E5: =VLOOKUP(A5,[1]Sheet3!$B$3:$G$145,1,FALSE) -> 3153993309329 | F5: =VLOOKUP(A5,[2]Sheet1!$CE$2:$CS$1539,15,FALSE) -> 211.50 | G5: 35.25 | H5: =VLOOKUP(A5,[1]Sheet3!$B$3:$G$145,6,FALSE) -> 82.8 | I5: 41.40 | J5: 76.65
A6: 3153993313623 | B6: =VLOOKUP(A6,[1]Sheet3!$B$3:$G$145,2,FALSE) -> 云南省广播电视局安全播出监测中心 | C6: =VLOOKUP(A6,[1]Sheet3!$B$3:$G$145,3,FALSE) -> 广播电视工程 | D6: =VLOOKUP(A6,[1]Sheet3!$B$3:$G$145,4,FALSE) -> 15399099157001001 | E6: =VLOOKUP(A6,[1]Sheet3!$B$3:$G$145,1,FALSE) -> 3153993313623 | F6: =VLOOKUP(A6,[2]Sheet1!$CE$2:$CS$1539,15,FALSE) -> 205.00 | G6: 34.17 | H6: =VLOOKUP(A6,[1]Sheet3!$B$3:$G$145,6,FALSE) -> 82.2 | I6: 41.10 | J6: 75.27
A7: 3153993310321 | B7: =VLOOKUP(A7,[1]Sheet3!$B$3:$G$145,2,FALSE) -> 云南省广播电视局安全播出监测中心 | C7: =VLOOKUP(A7,[1]Sheet3!$B$3:$G$145,3,FALSE) -> 广播电视工程 | D7: =VLOOKUP(A7,[1]Sheet3!$B$3:$G$145,4,FALSE) -> 15399099157001001 | E7: =VLOOKUP(A7,[1]Sheet3!$B$3:$G$145,1,FALSE) -> 3153993310321 | F7: =VLOOKUP(A7,[2]Sheet1!$CE$2:$CS$1539,15,FALSE) -> 205.00 | G7: 34.17 | H7: =VLOOKUP(A7,[1]Sheet3!$B$3:$G$145,6,FALSE) -> 81.6 | I7: 40.80 | J7: 74.97
A8: 3153993309915 | B8: =VLOOKUP(A8,[1]Sheet3!$B$3:$G$145,2,FALSE) -> 云南省广播电视局安全播出监测中心 | C8: =VLOOKUP(A8,[1]Sheet3!$B$3:$G$145,3,FALSE) -> 广播电视工程 | D8: =VLOOKUP(A8,[1]Sheet3!$B$3:$G$145,4,FALSE) -> 15399099157001001 | E8: =VLOOKUP(A8,[1]Sheet3!$B$3:$G$145,1,FALSE) -> 3153993309915 | F8: =VLOOKUP(A8,[2]Sheet1!$CE$2:$CS$1539,15,FALSE) -> 211.00 | G8: 35.17 | H8: =VLOOKUP(A8,[1]Sheet3!$B$3:$G$145,6,FALSE) -> 80.6 | I8: 40.30 | J8: 75.47
A9: 3153993309624 | B9: =VLOOKUP(A9,[1]Sheet3!$B$3:$G$145,2,FALSE) -> 云南省广播电视局安全播出监测中心 | C9: =VLOOKUP(A9,[1]Sheet3!$B$3:$G$145,3,FALSE) -> 广播电视工程 | D9: =VLOOKUP(A9,[1]Sheet3!$B$3:$G$145,4,FALSE) -> 15399099157001001 | E9: =VLOOKUP(A9,[1]Sheet3!$B$3:$G$145,1,FALSE) -> 3153993309624 | F9: =VLOOKUP(A9,[2]Sheet1!$CE$2:$CS$1539,15,FALSE) -> 206.00 | G9: 34.33 | H9: =VLOOKUP(A9,[1]Sheet3!$B$3:$G$145,6,FALSE) -> 79 | I9: 39.50 | J9: 73.83
A10: 1153991503117 | B10: =VLOOKUP(A10,[1]Sheet3!$B$3:$G$145,2,FALSE) -> 云南省广播电视局保山702台 | C10: =VLOOKUP(A10,[1]Sheet3!$B$3:$G$145,3,FALSE) -> 会计 | D10: =VLOOKUP(A10,[1]Sheet3!$B$3:$G$145,4,FALSE) -> 15399099157005001 | E10: =VLOOKUP(A10,[1]Sheet3!$B$3:$G$145,1,FALSE) -> 1153991503117 | F10: =VLOOKUP(A10,[2]Sheet1!$CE$2:$CS$1539,15,FALSE) -> 211.50 | G10: 35.25 | H10: =VLOOKUP(A10,[1]Sheet3!$B$3:$G$145,6,FALSE) -> 81.4 | I10: 40.70 | J10: 75.95
A11: 1153991501121 | B11: =VLOOKUP(A11,[1]Sheet3!$B$3:$G$145,2,FALSE) -> 云南省广播电视局保山702台 | C11: =VLOOKUP(A11,[1]Sheet3!$B$3:$G$145,3,FALSE) -> 会计 | D11: =VLOOKUP(A11,[1]Sheet3!$B$3:$G$145,4,FALSE) -> 15399099157005001 | E11: =VLOOKUP(A11,[1]Sheet3!$B$3:$G$145,1,FALSE) -> 1153991501121 | F11: =VLOOKUP(A11,[2]Sheet1!$CE$2:$CS$1539,15,FALSE) -> 203.50 | G11: 33.92 | H11: =VLOOKUP(A11,[1]Sheet3!$B$3:$G$145,6,FALSE) -> 78.2 | I11: 39.10 | J11: 73.02
A12: 1153991501424 | B12: =VLOOKUP(A12,[1]Sheet3!$B$3:$G$145,2,FALSE) -> 云南省广播电视局沧源中波台 | C12: =VLOOKUP(A12,[1]Sheet3!$B$3:$G$145,3,FALSE) -> 文秘 | D12: =VLOOKUP(A12,[1]Sheet3!$B$3:$G$145,4,FALSE) -> 15399099157035001 | E12: =VLOOKUP(A12,[1]Sheet3!$B$3:$G$145,1,FALSE) -> 1153991501424 | F12: =VLOOKUP(A12,[2]Sheet1!$CE$2:$CS$1539,15,FALSE) -> 200.00 | G12: 33.33 | H12: =VLOOKUP(A12,[1]Sheet3!$B$3:$G$145,6,FALSE) -> 82.6 | I12: 41.30 | J12: 74.63
A13: 1153991503917 | B13: =VLOOKUP(A13,[1]Sheet3!$B$3:$G$145,2,FALSE) -> 云南省广播电视局沧源中波台 | C13: =VLOOKUP(A13,[1]Sheet3!$B$3:$G$145,3,FALSE) -> 文秘 | D13: =VLOOKUP(A13,[1]Sheet3!$B$3:$G$145,4,FALSE) -> 15399099157035001 | E13: =VLOOKUP(A13,[1]Sheet3!$B$3:$G$145,1,FALSE) -> 1153991503917 | F13: =VLOOKUP(A13,[2]Sheet1!$CE$2:$CS$1539,15,FALSE) -> 191.00 | G13: 31.83 | H13: =VLOOKUP(A13,[1]Sheet3!$B$3:$G$145,6,FALSE) -> 79.7 | I13: 39.85 | J13: 71.68
A14: 3153993208511 | B14: =VLOOKUP(A14,[1]Sheet3!$B$3:$G$145,2,FALSE) -> 云南省广播电视局沧源中波台 | C14: =VLOOKUP(A14,[1]Sheet3!$B$3:$G$145,3,FALSE) -> 广播电视工程 | D14: =VLOOKUP(A14,[1]Sheet3!$B$3:$G$145,4,FALSE) -> 15399099157035002 | E14: =VLOOKUP(A14,[1]Sheet3!$B$3:$G$145,1,FALSE) -> 3153993208511 | F14: =VLOOKUP(A14,[2]Sheet1!$CE$2:$CS$1539,15,FALSE) -> 157.00 | G14: 26.17 | H14: =VLOOKUP(A14,[1]Sheet3!$B$3:$G$145,6,FALSE) -> 81 | I14: 40.50 | J14: 66.67
A15: 3153993207402 | B15: =VLOOKUP(A15,[1]Sheet3!$B$3:$G$145,2,FALSE) -> 云南省广播电视局沧源中波台 | C15: =VLOOKUP(A15,[1]Sheet3!$B$3:$G$145,3,FALSE) -> 广播电视工程 | D15: =VLOOKUP(A15,[1]Sheet3!$B$3:$G$145,4,FALSE) -> 15399099157035002 | E15: =VLOOKUP(A15,[1]Sheet3!$B$3:$G$145,1,FALSE) -> 3153993207402 | F15: =VLOOKUP(A15,[2]Sheet1!$CE$2:$CS$1539,15,FALSE) -> 156.50 | G15: 26.08 | H15: =VLOOKUP(A15,[1]Sheet3!$B$3:$G$145,6,FALSE) -> 77.8 | I15: 38.90 | J15: 64.98
A16: 1153991503422 | B16: =VLOOKUP(A16,[1]Sheet3!$B$3:$G$145,2,FALSE) -> 云南省广播电视局大理实验台 | C16: =VLOOKUP(A16,[1]Sheet3!$B$3:$G$145,3,FALSE) -> 会计 | D16: =VLOOKUP(A16,[1]Sheet3!$B$3:$G$145,4,FALSE) -> 15399099157012001 | E16: =VLOOKUP(A16,[1]Sheet3!$B$3:$G$145,1,FALSE) -> 1153991503422 | F16: =VLOOKUP(A16,[2]Sheet1!$CE$2:$CS$1539,15,FALSE) -> 208.00 | G16: 34.67 | H16: =VLOOKUP(A16,[1]Sheet3!$B$3:$G$145,6,FALSE) -> 79.2 | I16: 39.60 | J16: 74.27
A17: 1153991501928 | B17: =VLOOKUP(A17,[1]Sheet3!$B$3:$G$145,2,FALSE) -> 云南省广播电视局大理实验台 | C17: =VLOOKUP(A17,[1]Sheet3!$B$3:$G$145,3,FALSE) -> 会计 | D17: =VLOOKUP(A17,[1]Sheet3!$B$3:$G$145,4,FALSE) -> 15399099157012001 | E17: =VLOOKUP(A17,[1]Sheet3!$B$3:$G$145,1,FALSE) -> 1153991501928 | F17: =VLOOKUP(A17,[2]Sheet1!$CE$2:$CS$1539,15,FALSE) -> 207.50 | G17: 34.58 | H17: =VLOOKUP(A17,[1]Sheet3!$B$3:$G$145,6,FALSE) -> 78.04 | I17: 39.02 | J17: 73.60
A18: 1153991502818 | B18: =VLOOKUP(A18,[1]Sheet3!$B$3:$G$145,2,FALSE) -> 云南省广播电视局德宏705台 | C18: =VLOOKUP(A18,[1]Sheet3!$B$3:$G$145,3,FALSE) -> 会计 | D18: =VLOOKUP(A18,[1]Sheet3!$B$3:$G$145,4,FALSE) -> 15399099157006001 | E18: =VLOOKUP(A18,[1]Sheet3!$B$3:$G$145,1,FALSE) -> 1153991502818 | F18: =VLOOKUP(A18,[2]Sheet1!$CE$2:$CS$1539,15,FALSE) -> 204.00 | G18: 34.00 | H18: =VLOOKUP(A18,[1]Sheet3!$B$3:$G$145,6,FALSE) -> 79.8 | I18: 39.90 | J18: 73.90
A19: 1153991500926 | B19: =VLOOKUP(A19,[1]Sheet3!$B$3:$G$145,2,FALSE) -> 云南省广播电视局德宏705台 | C19: =VLOOKUP(A19,[1]Sheet3!$B$3:$G$145,3,FALSE) -> 会计 | D19: =VLOOKUP(A19,[1]Sheet3!$B$3:$G$145,4,FALSE) -> 15399099157006001 | E19: =VLOOKUP(A19,[1]Sheet3!$B$3:$G$145,1,FALSE) -> 1153991500926 | F19: =VLOOKUP(A19,[2]Sheet1!$CE$2:$CS$1539,15,FALSE) -> 201.50 | G19: 33.58 | H19: =VLOOKUP(A19,[1]Sheet3!$B$3:$G$145,6,FALSE) -> 77.3 | I19: 38.65 | J19: 72.23
A20: 1153991502430 | B20: =VLOOKUP(A20,[1]Sheet3!$B$3:$G$145,2,FALSE) -> 云南省广播电视局迪庆实验台 | C20: =VLOOKUP(A20,[1]Sheet3!$B$3:$G$145,3,FALSE) -> 文秘 | D20: =VLOOKUP(A20,[1]Sheet3!$B$3:$G$145,4,FALSE) -> 15399099157011001 | E20: =VLOOKUP(A20,[1]Sheet3!$B$3:$G$145,1,FALSE) -> 1153991502430 | F20: =VLOOKUP(A20,[2]Sheet1!$CE$2:$CS$1539,15,FALSE) -> 204.00 | G20: 34.00 | H20: =VLOOKUP(A20,[1]Sheet3!$B$3:$G$145,6,FALSE) -> 85.2 | I20: 42.60 | J20: 76.60
A21: 1153991505711 | B21: =VLOOKUP(A21,[1]Sheet3!$B$3:$G$145,2,FALSE) -> 云南省广播电视局迪庆实验台 | C21: =VLOOKUP(A21,[1]Sheet3!$B$3:$G$145,3,FALSE) -> 文秘 | D21: =VLOOKUP(A21,[1]Sheet3!$B$3:$G$145,4,FALSE) -> 15399099157011001 | E21: =VLOOKUP(A21,[1]Sheet3!$B$3:$G$145,1,FALSE) -> 1153991505711 | F21: =VLOOKUP(A21,[2]Sheet1!$CE$2:$CS$1539,15,FALSE) -> 209.00 | G21: 34.83 | H21: =VLOOKUP(A21,[1]Sheet3!$B$3:$G$145,6,FALSE) -> 80 | I21: 40.00 | J21: 74.83
A22: 3153993204216 | B22: =VLOOKUP(A22,[1]Sheet3!$B$3:$G$145,2,FALSE) -> 云南省广播电视局迪庆实验台 | C22: =VLOOKUP(A22,[1]Sheet3!$B$3:$G$145,3,FALSE) -> 广播电视工程 | D22: =VLOOKUP(A22,[1]Sheet3!$B$3:$G$145,4,FALSE) -> 15399099157011002 | E22: =VLOOKUP(A22,[1]Sheet3!$B$3:$G$145,1,FALSE) -> 3153993204216 | F22: =VLOOKUP(A22,[2]Sheet1!$CE$2:$CS$1539,15,FALSE) -> 150.00 | G22: 25.00 | H22: =VLOOKUP(A22,[1]Sheet3!$B$3:$G$145,6,FALSE) -> 80.6 | I22: 40.30 | J22: 65.30
A23: 3153993207816 | B23: =VLOOKUP(A23,[1]Sheet3!$B$3:$G$145,2,FALSE) -> 云南省广播电视局迪庆实验台 | C23: =VLOOKUP(A23,[1]Sheet3!$B$3:$G$145,3,FALSE) -> 广播电视工程 | D23: =VLOOKUP(A23,[1]Sheet3!$B$3:$G$145,4,FALSE) -> 15399099157011002 | E23: =VLOOKUP(A23,[1]Sheet3!$B$3:$G$145,1,FALSE) -> 3153993207816 | F23: =VLOOKUP(A23,[2]Sheet1!$CE$2:$CS$1539,15,FALSE) -> 134.50 | G23: 22.42 | H23: =VLOOKUP(A23,[1]Sheet3!$B$3:$G$145,6,FALSE) -> 79.4 | I23: 39.70 | J23: 62.12
A24: 1153991500322 | B24: =VLOOKUP(A24,[1]Sheet3!$B$3:$G$145,2,FALSE) -> 云南省广播电视局迪庆中波台 | C24: =VLOOKUP(A24,[1]Sheet3!$B$3:$G$145,3,FALSE) -> 会计 | D24: =VLOOKUP(A24,[1]Sheet3!$B$3:$G$145,4,FALSE) -> 15399099157009001 | E24: =VLOOKUP(A24,[1]Sheet3!$B$3:$G$145,1,FALSE) -> 1153991500322 | F24: =VLOOKUP(A24,[2]Sheet1!$CE$2:$CS$1539,15,FALSE) -> 198.50 | G24: 33.08 | H24: =VLOOKUP(A24,[1]Sheet3!$B$3:$G$145,6,FALSE) -> 82.2 | I24: 41.10 | J24: 74.18
A25: 1153991505807 | B25: =VLOOKUP(A25,[1]Sheet3!$B$3:$G$145,2,FALSE) -> 云南省广播电视局迪庆中波台 | C25: =VLOOKUP(A25,[1]Sheet3!$B$3:$G$145,3,FALSE) -> 会计 | D25: =VLOOKUP(A25,[1]Sheet3!$B$3:$G$145,4,FALSE) -> 15399099157009001 | E25: =VLOOKUP(A25,[1]Sheet3!$B$3:$G$145,1,FALSE) -> 1153991505807 | F25: =VLOOKUP(A25,[2]Sheet1!$CE$2:$CS$1539,15,FALSE) -> 209.00 | G25: 34.83 | H25: =VLOOKUP(A25,[1]Sheet3!$B$3:$G$145,6,FALSE) -> 79.1 | I25: 39.55 | J25: 74.38
A26: 1153991504306 | B26: =VLOOKUP(A26,[1]Sheet3!$B$3:$G$145,2,FALSE) -> 云南省广播电视局迪庆中波台 | C26: =VLOOKUP(A26,[1]Sheet3!$B$3:$G$145,3,FALSE) -> 文秘 | D26: =VLOOKUP(A26,[1]Sheet3!$B$3:$G$145,4,FALSE) -> 15399099157009002 | E26: =VLOOKUP(A26,[1]Sheet3!$B$3:$G$145,1,FALSE) -> 1153991504306 | F26: =VLOOKUP(A26,[2]Sheet1!$CE$2:$CS$1539,15,FALSE) -> 206.50 | G26: 34.42 | H26: =VLOOKUP(A26,[1]Sheet3!$B$3:$G$145,6,FALSE) -> 82.3 | I26: 41.15 | J26: 75.57
A27: 1153991505127 | B27: =VLOOKUP(A27,[1]Sheet3!$B$3:$G$145,2,FALSE) -> 云南省广播电视局福贡中波台 | C27: =VLOOKUP(A27,[1]Sheet3!$B$3:$G$145,3,FALSE) -> 会计 | D27: =VLOOKUP(A27,[1]Sheet3!$B$3:$G$145,4,FALSE) -> 15399099157033001 | E27: =VLOOKUP(A27,[1]Sheet3!$B$3:$G$145,1,FALSE) -> 1153991505127 | F27: =VLOOKUP(A27,[2]Sheet1!$CE$2:$CS$1539,15,FALSE) -> 180.50 | G27: 30.08 | H27: =VLOOKUP(A27,[1]Sheet3!$B$3:$G$145,6,FALSE) -> 78.3 | I27: 39.15 | J27: 69.23
A28: 1153991505730 | B28: =VLOOKUP(A28,[1]Sheet3!$B$3:$G$145,2,FALSE) -> 云南省广播电视局福贡中波台 | C28: =VLOOKUP(A28,[1]Sheet3!$B$3:$G$145,3,FALSE) -> 会计 | D28: =VLOOKUP(A28,[1]Sheet3!$B$3:$G$145,4,FALSE) -> 15399099157033001 | E28: =VLOOKUP(A28,[1]Sheet3!$B$3:$G$145,1,FALSE) -> 1153991505730 | F28: =VLOOKUP(A28,[2]Sheet1!$CE$2:$CS$1539,15,FALSE) -> 169.50 | G28: 28.25 | H28: =VLOOKUP(A28,[1]Sheet3!$B$3:$G$145,6,FALSE) -> 76.2 | I28: 38.10 | J28: 66.35
A29: 1153991500815 | B29: =VLOOKUP(A29,[1]Sheet3!$B$3:$G$145,2,FALSE) -> 云南省广播电视局福贡中波台 | C29: =VLOOKUP(A29,[1]Sheet3!$B$3:$G$145,3,FALSE) -> 文秘 | D29: =VLOOKUP(A29,[1]Sheet3!$B$3:$G$145,4,FALSE) -> 15399099157033002 | E29: =VLOOKUP(A29,[1]Sheet3!$B$3:$G$145,1,FALSE) -> 1153991500815 | F29: =VLOOKUP(A29,[2]Sheet1!$CE$2:$CS$1539,15,FALSE) -> 152.00 | G29: 25.33 | H29: =VLOOKUP(A29,[1]Sheet3!$B$3:$G$145,6,FALSE) -> 80 | I29: 40.00 | J29: 65.33
A30: 1153991501820 | B30: =VLOOKUP(A30,[1]Sheet3!$B$3:$G$145,2,FALSE) -> 云南省广播电视局福贡中波台 | C30: =VLOOKUP(A30,[1]Sheet3!$B$3:$G$145,3,FALSE) -> 文秘 | D30: =VLOOKUP(A30,[1]Sheet3!$B$3:$G$145,4,FALSE) -> 15399099157033002 | E30: =VLOOKUP(A30,[1]Sheet3!$B$3:$G$145,1,FALSE) -> 1153991501820 | F30: =VLOOKUP(A30,[2]Sheet1!$CE$2:$CS$1539,15,FALSE) -> 136.50 | G30: 22.75 | H30: =VLOOKUP(A30,[1]Sheet3!$B$3:$G$145,6,FALSE) -> 77.7 | I30: 38.85 | J30: 61.60
A31: 3153993208104 | B31: =VLOOKUP(A31,[1]Sheet3!$B$3:$G$145,2,FALSE) -> 云南省广播电视局福贡中波台 | C31: =VLOOKUP(A31,[1]Sheet3!$B$3:$G$145,3,FALSE) -> 广播电视工程 | D31: =VLOOKUP(A31,[1]Sheet3!$B$3:$G$145,4,FALSE) -> 15399099157033003 | E31: =VLOOKUP(A31,[1]Sheet3!$B$3:$G$145,1,FALSE) -> 3153993208104 | F31: =VLOOKUP(A31,[2]Sheet1!$CE$2:$CS$1539,15,FALSE) -> 120.00 | G31: 20.00 | H31: =VLOOKUP(A31,[1]Sheet3!$B$3:$G$145,6,FALSE) -> 77.8 | I31: 38.90 | J31: 58.90
A32: 1153991504101 | B32: =VLOOKUP(A32,[1]Sheet3!$B$3:$G$145,2,FALSE) -> 云南省广播电视局富宁中波台 | C32: =VLOOKUP(A32,[1]Sheet3!$B$3:$G$145,3,FALSE) -> 文秘 | D32: =VLOOKUP(A32,[1]Sheet3!$B$3:$G$145,4,FALSE) -> 15399099157021001 | E32: =VLOOKUP(A32,[1]Sheet3!$B$3:$G$145,1,FALSE) -> 1153991504101 | F32: =VLOOKUP(A32,[2]Sheet1!$CE$2:$CS$1539,15,FALSE) -> 205.50 | G32: 34.25 | H32: =VLOOKUP(A32,[1]Sheet3!$B$3:$G$145,6,FALSE) -> 81.8 | I32: 40.90 | J32: 75.15
A33: 1153991502622 | B33: =VLOOKUP(A33,[1]Sheet3!$B$3:$G$145,2,FALSE) -> 云南省广播电视局富宁中波台 | C33: =VLOOKUP(A33,[1]Sheet3!$B$3:$G$145,3,FALSE) -> 文秘 | D33: =VLOOKUP(A33,[1]Sheet3!$B$3:$G$145,4,FALSE) -> 15399099157021001 | E33: =VLOOKUP(A33,[1]Sheet3!$B$3:$G$145,1,FALSE) -> 1153991502622 | F33: =VLOOKUP(A33,[2]Sheet1!$CE$2:$CS$1539,15,FALSE) -> 193.00 | G33: 32.17 | H33: =VLOOKUP(A33,[1]Sheet3!$B$3:$G$145,6,FALSE) -> 79.4 | I33: 39.70 | J33: 71.87
A34: 3153993204811 | B34: =VLOOKUP(A34,[1]Sheet3!$B$3:$G$145,2,FALSE) -> 云南省广播电视局富宁中波台 | C34: =VLOOKUP(A34,[1]Sheet3!$B$3:$G$145,3,FALSE) -> 广播电视工程 | D34: =VLOOKUP(A34,[1]Sheet3!$B$3:$G$145,4,FALSE) -> 15399099157021002 | E34: =VLOOKUP(A34,[1]Sheet3!$B$3:$G$145,1,FALSE) -> 3153993204811 | F34: =VLOOKUP(A34,[2]Sheet1!$CE$2:$CS$1539,15,FALSE) -> 191.00 | G34: 31.83 | H34: =VLOOKUP(A34,[1]Sheet3!$B$3:$G$145,6,FALSE) -> 81 | I34: 40.50 | J34: 72.33
A35: 3153993208519 | B35: =VLOOKUP(A35,[1]Sheet3!$B$3:$G$145,2,FALSE) -> 云南省广播电视局富宁中波台 | C35: =VLOOKUP(A35,[1]Sheet3!$B$3:$G$145,3,FALSE) -> 广播电视工程 | D35: =VLOOKUP(A35,[1]Sheet3!$B$3:$G$145,4,FALSE) -> 15399099157021002 | E35: =VLOOKUP(A35,[1]Sheet3!$B$3:$G$145,1,FALSE) -> 3153993208519 | F35: =VLOOKUP(A35,[2]Sheet1!$CE$2:$CS$1539,15,FALSE) -> 145.00 | G35: 24.17 | H35: =VLOOKUP(A35,[1]Sheet3!$B$3:$G$145,6,FALSE) -> 79.8 | I35: 39.90 | J35: 64.07
A36: 3153993204308 | B36: =VLOOKUP(A36,[1]Sheet3!$B$3:$G$145,2,FALSE) -> 云南省广播电视局贡山中波台 | C36: =VLOOKUP(A36,[1]Sheet3!$B$3:$G$145,3,FALSE) -> 广播电视工程 | D36: =VLOOKUP(A36,[1]Sheet3!$B$3:$G$145,4,FALSE) -> 15399099157034001 | E36: =VLOOKUP(A36,[1]Sheet3!$B$3:$G$145,1,FALSE) -> 3153993204308 | F36: =VLOOKUP(A36,[2]Sheet1!$CE$2:$CS$1539,15,FALSE) -> 133.00 | G36: 22.17 | H36: =VLOOKUP(A36,[1]Sheet3!$B$3:$G$145,6,FALSE) -> 77.8 | I36: 38.90 | J36: 61.07
A37: 1153991500414 | B37: =VLOOKUP(A37,[1]Sheet3!$B$3:$G$145,2,FALSE) -> 云南省广播电视局河口中波台 | C37: =VLOOKUP(A37,[1]Sheet3!$B$3:$G$145,3,FALSE) -> 文秘 | D37: =VLOOKUP(A37,[1]Sheet3!$B$3:$G$145,4,FALSE) -> 15399099157017001 | E37: =VLOOKUP(A37,[1]Sheet3!$B$3:$G$145,1,FALSE) -> 1153991500414 | F37: =VLOOKUP(A37,[2]Sheet1!$CE$2:$CS$1539,15,FALSE) -> 183.00 | G37: 30.50 | H37: =VLOOKUP(A37,[1]Sheet3!$B$3:$G$145,6,FALSE) -> 77.9 | I37: 38.95 | J37: 69.45
A38: 1153991503910 | B38: =VLOOKUP(A38,[1]Sheet3!$B$3:$G$145,2,FALSE) -> 云南省广播电视局河口中波台 | C38: =VLOOKUP(A38,[1]Sheet3!$B$3:$G$145,3,FALSE) -> 文秘 | D38: =VLOOKUP(A38,[1]Sheet3!$B$3:$G$145,4,FALSE) -> 15399099157017001 | E38: =VLOOKUP(A38,[1]Sheet3!$B$3:$G$145,1,FALSE) -> 1153991503910 | F38: =VLOOKUP(A38,[2]Sheet1!$CE$2:$CS$1539,15,FALSE) -> 168.50 | G38: 28.08 | H38: =VLOOKUP(A38,[1]Sheet3!$B$3:$G$145,6,FALSE) -> 0 | I38: 0.00 | J38: 28.08
A39: 3153993205426 | B39: =VLOOKUP(A39,[1]Sheet3!$B$3:$G$145,2,FALSE) -> 云南省广播电视局河口中波台 | C39: =VLOOKUP(A39,[1]Sheet3!$B$3:$G$145,3,FALSE) -> 广播电视工程 | D39: =VLOOKUP(A39,[1]Sheet3!$B$3:$G$145,4,FALSE) -> 15399099157017002 | E39: =VLOOKUP(A39,[1]Sheet3!$B$3:$G$145,1,FALSE) -> 3153993205426 | F39: =VLOOKUP(A39,[2]Sheet1!$CE$2:$CS$1539,15,FALSE) -> 173.00 | G39: 28.83 | H39: =VLOOKUP(A39,[1]Sheet3!$B$3:$G$145,6,FALSE) -> 82.8 | I39: 41.40 | J39: 70.23
A40: 3153993208317 | B40: =VLOOKUP(A40,[1]Sheet3!$B$3:$G$145,2,FALSE) -> 云南省广播电视局河口中波台 | C40: =VLOOKUP(A40,[1]Sheet3!$B$3:$G$145,3,FALSE) -> 广播电视工程 | D40: =VLOOKUP(A40,[1]Sheet3!$B$3:$G$145,4,FALSE) -> 15399099157017002 | E40: =VLOOKUP(A40,[1]Sheet3!$B$3:$G$145,1,FALSE) -> 3153993208317 | F40: =VLOOKUP(A40,[2]Sheet1!$CE$2:$CS$1539,15,FALSE) -> 181.50 | G40: 30.25 | H40: =VLOOKUP(A40,[1]Sheet3!$B$3:$G$145,6,FALSE) -> 82.8 | I40: 41.40 | J40: 71.65
A41: 1153991502808 | B41: =VLOOKUP(A41,[1]Sheet3!$B$3:$G$145,2,FALSE) -> 云南省广播电视局江城中波台 | C41: =VLOOKUP(A41,[1]Sheet3!$B$3:$G$145,3,FALSE) -> 文秘 | D41: =VLOOKUP(A41,[1]Sheet3!$B$3:$G$145,4,FALSE) -> 15399099157024001 | E41: =VLOOKUP(A41,[1]Sheet3!$B$3:$G$145,1,FALSE) -> 1153991502808 | F41: =VLOOKUP(A41,[2]Sheet1!$CE$2:$CS$1539,15,FALSE) -> 209.00 | G41: 34.83 | H41: =VLOOKUP(A41,[1]Sheet3!$B$3:$G$145,6,FALSE) -> 81.2 | I41: 40.60 | J41: 75.43
A42: 1153991503415 | B42: =VLOOKUP(A42,[1]Sheet3!$B$3:$G$145,2,FALSE) -> 云南省广播电视局江城中波台 | C42: =VLOOKUP(A42,[1]Sheet3!$B$3:$G$145,3,FALSE) -> 文秘 | D42: =VLOOKUP(A42,[1]Sheet3!$B$3:$G$145,4,FALSE) -> 15399099157024001 | E42: =VLOOKUP(A42,[1]Sheet3!$B$3:$G$145,1,FALSE) -> 1153991503415 | F42: =VLOOKUP(A42,[2]Sheet1!$CE$2:$CS$1539,15,FALSE) -> 173.00 | G42: 28.83 | H42: =VLOOKUP(A42,[1]Sheet3!$B$3:$G$145,6,FALSE) -> 75.2 | I42: 37.60 | J42: 66.43
A43: 1153991505003 | B43: =VLOOKUP(A43,[1]Sheet3!$B$3:$G$145,2,FALSE) -> 云南省广播电视局金平中波台 | C43: =VLOOKUP(A43,[1]Sheet3!$B$3:$G$145,3,FALSE) -> 会计 | D43: =VLOOKUP(A43,[1]Sheet3!$B$3:$G$145,4,FALSE) -> 15399099157016001 | E43: =VLOOKUP(A43,[1]Sheet3!$B$3:$G$145,1,FALSE) -> 1153991505003 | F43: =VLOOKUP(A43,[2]Sheet1!$CE$2:$CS$1539,15,FALSE) -> 214.00 | G43: 35.67 | H43: =VLOOKUP(A43,[1]Sheet3!$B$3:$G$145,6,FALSE) -> 79.4 | I43: 39.70 | J43: 75.37
A44: 1153991505109 | B44: =VLOOKUP(A44,[1]Sheet3!$B$3:$G$145,2,FALSE) -> 云南省广播电视局金平中波台 | C44: =VLOOKUP(A44,[1]Sheet3!$B$3:$G$145,3,FALSE) -> 会计 | D44: =VLOOKUP(A44,[1]Sheet3!$B$3:$G$145,4,FALSE) -> 15399099157016001 | E44: =VLOOKUP(A44,[1]Sheet3!$B$3:$G$145,1,FALSE) -> 1153991505109 | F44: =VLOOKUP(A44,[2]Sheet1!$CE$2:$CS$1539,15,FALSE) -> 193.00 | G44: 32.17 | H44: =VLOOKUP(A44,[1]Sheet3!$B$3:$G$145,6,FALSE) -> 79.4 | I44: 39.70 | J44: 71.87
A45: 1153991503409 | B45: =VLOOKUP(A45,[1]Sheet3!$B$3:$G$145,2,FALSE) -> 云南省广播电视局金平中波台 | C45: =VLOOKUP(A45,[1]Sheet3!$B$3:$G$145,3,FALSE) -> 文秘 | D45: =VLOOKUP(A45,[1]Sheet3!$B$3:$G$145,4,FALSE) -> 15399099157016002 | E45: =VLOOKUP(A45,[1]Sheet3!$B$3:$G$145,1,FALSE) -> 1153991503409 | F45: =VLOOKUP(A45,[2]Sheet1!$CE$2:$CS$1539,15,FALSE) -> 185.50 | G45: 30.92 | H45: =VLOOKUP(A45,[1]Sheet3!$B$3:$G$145,6,FALSE) -> 80 | I45: 40.00 | J45: 70.92
A46: 1153991503630 | B46: =VLOOKUP(A46,[1]Sheet3!$B$3:$G$145,2,FALSE) -> 云南省广播电视局金平中波台 | C46: =VLOOKUP(A46,[1]Sheet3!$B$3:$G$145,3,FALSE) -> 文秘 | D46: =VLOOKUP(A46,[1]Sheet3!$B$3:$G$145,4,FALSE) -> 15399099157016002 | E46: =VLOOKUP(A46,[1]Sheet3!$B$3:$G$145,1,FALSE) -> 1153991503630 | F46: =VLOOKUP(A46,[2]Sheet1!$CE$2:$CS$1539,15,FALSE) -> 176.00 | G46: 29.33 | H46: =VLOOKUP(A46,[1]Sheet3!$B$3:$G$145,6,FALSE) -> 78.5 | I46: 39.25 | J46: 68.58
A47: 1153991500219 | B47: =VLOOKUP(A47,[1]Sheet3!$B$3:$G$145,2,FALSE) -> 云南省广播电视局景东695台 | C47: =VLOOKUP(A47,[1]Sheet3!$B$3:$G$145,3,FALSE) -> 文秘 | D47: =VLOOKUP(A47,[1]Sheet3!$B$3:$G$145,4,FALSE) -> 15399099157023001 | E47: =VLOOKUP(A47,[1]Sheet3!$B$3:$G$145,1,FALSE) -> 1153991500219 | F47: =VLOOKUP(A47,[2]Sheet1!$CE$2:$CS$1539,15,FALSE) -> 202.50 | G47: 33.75 | H47: =VLOOKUP(A47,[1]Sheet3!$B$3:$G$145,6,FALSE) -> 82 | I47: 41.00 | J47: 74.75
A48: 1153991502001 | B48: =VLOOKUP(A48,[1]Sheet3!$B$3:$G$145,2,FALSE) -> 云南省广播电视局景东695台 | C48: =VLOOKUP(A48,[1]Sheet3!$B$3:$G$145,3,FALSE) -> 文秘 | D48: =VLOOKUP(A48,[1]Sheet3!$B$3:$G$145,4,FALSE) -> 15399099157023001 | E48: =VLOOKUP(A48,[1]Sheet3!$B$3:$G$145,1,FALSE) -> 1153991502001 | F48: =VLOOKUP(A48,[2]Sheet1!$CE$2:$CS$1539,15,FALSE) -> 198.00 | G48: 33.00 | H48: =VLOOKUP(A48,[1]Sheet3!$B$3:$G$145,6,FALSE) -> 78.4 | I48: 39.20 | J48: 72.20
A49: 1153991505618 | B49: =VLOOKUP(A49,[1]Sheet3!$B$3:$G$145,2,FALSE) -> 云南省广播电视局开远实验台 | C49: =VLOOKUP(A49,[1]Sheet3!$B$3:$G$145,3,FALSE) -> 文秘 | D49: =VLOOKUP(A49,[1]Sheet3!$B$3:$G$145,4,FALSE) -> 15399099157013001 | E49: =VLOOKUP(A49,[1]Sheet3!$B$3:$G$145,1,FALSE) -> 1153991505618 | F49: =VLOOKUP(A49,[2]Sheet1!$CE$2:$CS$1539,15,FALSE) -> 210.50 | G49: 35.08 | H49: =VLOOKUP(A49,[1]Sheet3!$B$3:$G$145,6,FALSE) -> 79.9 | I49: 39.95 | J49: 75.03
A50: 1153991502010 | B50: =VLOOKUP(A50,[1]Sheet3!$B$3:$G$145,2,FALSE) -> 云南省广播电视局开远实验台 | C50: =VLOOKUP(A50,[1]Sheet3!$B$3:$G$145,3,FALSE) -> 文秘 | D50: =VLOOKUP(A50,[1]Sheet3!$B$3:$G$145,4,FALSE) -> 15399099157013001 | E50: =VLOOKUP(A50,[1]Sheet3!$B$3:$G$145,1,FALSE) -> 1153991502010 | F50: =VLOOKUP(A50,[2]Sheet1!$CE$2:$CS$1539,15,FALSE) -> 198.00 | G50: 33.00 | H50: =VLOOKUP(A50,[1]Sheet3!$B$3:$G$145,6,FALSE) -> 78.8 | I50: 39.40 | J50: 72.40
A51: 1153991502109 | B51: =VLOOKUP(A51,[1]Sheet3!$B$3:$G$145,2,FALSE) -> 云南省广播电视局澜沧中波台 | C51: =VLOOKUP(A51,[1]Sheet3!$B$3:$G$145,3,FALSE) -> 会计 | D51: =VLOOKUP(A51,[1]Sheet3!$B$3:$G$145,4,FALSE) -> 15399099157026001 | E51: =VLOOKUP(A51,[1]Sheet3!$B$3:$G$145,1,FALSE) -> 1153991502109 | F51: =VLOOKUP(A51,[2]Sheet1!$CE$2:$CS$1539,15,FALSE) -> 209.50 | G51: 34.92 | H51: =VLOOKUP(A51,[1]Sheet3!$B$3:$G$145,6,FALSE) -> 80.1 | I51: 40.05 | J51: 74.97
A52: 1153991502101 | B52: =VLOOKUP(A52,[1]Sheet3!$B$3:$G$145,2,FALSE) -> 云南省广播电视局澜沧中波台 | C52: =VLOOKUP(A52,[1]Sheet3!$B$3:$G$145,3,FALSE) -> 会计 | D52: =VLOOKUP(A52,[1]Sheet3!$B$3:$G$145,4,FALSE) -> 15399099157026001 | E52: =VLOOKUP(A52,[1]Sheet3!$B$3:$G$145,1,FALSE) -> 1153991502101 | F52: =VLOOKUP(A52,[2]Sheet1!$CE$2:$CS$1539,15,FALSE) -> 198.50 | G52: 33.08 | H52: =VLOOKUP(A52,[1]Sheet3!$B$3:$G$145,6,FALSE) -> 74.7 | I52: 37.35 | J52: 70.43
A53: 1153991505402 | B53: =VLOOKUP(A53,[1]Sheet3!$B$3:$G$145,2,FALSE) -> 云南省广播电视局澜沧中波台 | C53: =VLOOKUP(A53,[1]Sheet3!$B$3:$G$145,3,FALSE) -> 文秘 | D53: =VLOOKUP(A53,[1]Sheet3!$B$3:$G$145,4,FALSE) -> 15399099157026002 | E53: =VLOOKUP(A53,[1]Sheet3!$B$3:$G$145,1,FALSE) -> 1153991505402 | F53: =VLOOKUP(A53,[2]Sheet1!$CE$2:$CS$1539,15,FALSE) -> 202.00 | G53: 33.67 | H53: =VLOOKUP(A53,[1]Sheet3!$B$3:$G$145,6,FALSE) -> 80.7 | I53: 40.35 | J53: 74.02
A54: 1153991501320 | B54: =VLOOKUP(A54,[1]Sheet3!$B$3:$G$145,2,FALSE) -> 云南省广播电视局澜沧中波台 | C54: =VLOOKUP(A54,[1]Sheet3!$B$3:$G$145,3,FALSE) -> 文秘 | D54: =VLOOKUP(A54,[1]Sheet3!$B$3:$G$145,4,FALSE) -> 15399099157026002 | E54: =VLOOKUP(A54,[1]Sheet3!$B$3:$G$145,1,FALSE) -> 1153991501320 | F54: =VLOOKUP(A54,[2]Sheet1!$CE$2:$CS$1539,15,FALSE) -> 179.50 | G54: 29.92 | H54: =VLOOKUP(A54,[1]Sheet3!$B$3:$G$145,6,FALSE) -> 76.3 | I54: 38.15 | J54: 68.07
A55: 1153991503719 | B55: =VLOOKUP(A55,[1]Sheet3!$B$3:$G$145,2,FALSE) -> 云南省广播电视局丽江704台 | C55: =VLOOKUP(A55,[1]Sheet3!$B$3:$G$145,3,FALSE) -> 文秘 | D55: =VLOOKUP(A55,[1]Sheet3!$B$3:$G$145,4,FALSE) -> 15399099157007001 | E55: =VLOOKUP(A55,[1]Sheet3!$B$3:$G$145,1,FALSE) -> 1153991503719 | F55: =VLOOKUP(A55,[2]Sheet1!$CE$2:$CS$1539,15,FALSE) -> 215.50 | G55: 35.92 | H55: =VLOOKUP(A55,[1]Sheet3!$B$3:$G$145,6,FALSE) -> 82 | I55: 41.00 | J55: 76.92
A56: 1153991501418 | B56: =VLOOKUP(A56,[1]Sheet3!$B$3:$G$145,2,FALSE) -> 云南省广播电视局丽江704台 | C56: =VLOOKUP(A56,[1]Sheet3!$B$3:$G$145,3,FALSE) -> 文秘 | D56: =VLOOKUP(A56,[1]Sheet3!$B$3:$G$145,4,FALSE) -> 15399099157007001 | E56: =VLOOKUP(A56,[1]Sheet3!$B$3:$G$145,1,FALSE) -> 1153991501418 | F56: =VLOOKUP(A56,[2]Sheet1!$CE$2:$CS$1539,15,FALSE) -> 216.00 | G56: 36.00 | H56: =VLOOKUP(A56,[1]Sheet3!$B$3:$G$145,6,FALSE) -> 81.6 | I56: 40.80 | J56: 76.80
A57: 3153993204510 | B57: =VLOOKUP(A57,[1]Sheet3!$B$3:$G$145,2,FALSE) -> 云南省广播电视局丽江704台 | C57: =VLOOKUP(A57,[1]Sheet3!$B$3:$G$145,3,FALSE) -> 广播电视工程 | D57: =VLOOKUP(A57,[1]Sheet3!$B$3:$G$145,4,FALSE) -> 15399099157007002 | E57: =VLOOKUP(A57,[1]Sheet3!$B$3:$G$145,1,FALSE) -> 3153993204510 | F57: =VLOOKUP(A57,[2]Sheet1!$CE$2:$CS$1539,15,FALSE) -> 194.50 | G57: 32.42 | H57: =VLOOKUP(A57,[1]Sheet3!$B$3:$G$145,6,FALSE) -> 81.8 | I57: 40.90 | J57: 73.32
A58: 3153993208008 | B58: =VLOOKUP(A58,[1]Sheet3!$B$3:$G$145,2,FALSE) -> 云南省广播电视局丽江704台 | C58: =VLOOKUP(A58,[1]Sheet3!$B$3:$G$145,3,FALSE) -> 广播电视工程 | D58: =VLOOKUP(A58,[1]Sheet3!$B$3:$G$145,4,FALSE) -> 15399099157007002 | E58: =VLOOKUP(A58,[1]Sheet3!$B$3:$G$145,1,FALSE) -> 3153993208008 | F58: =VLOOKUP(A58,[2]Sheet1!$CE$2:$CS$1539,15,FALSE) -> 195.00 | G58: 32.50 | H58: =VLOOKUP(A58,[1]Sheet3!$B$3:$G$145,6,FALSE) -> 81.2 | I58: 40.60 | J58: 73.10
A59: 3153993208716 | B59: =VLOOKUP(A59,[1]Sheet3!$B$3:$G$145,2,FALSE) -> 云南省广播电视局丽江704台 | C59: =VLOOKUP(A59,[1]Sheet3!$B$3:$G$145,3,FALSE) -> 广播电视工程 | D59: =VLOOKUP(A59,[1]Sheet3!$B$3:$G$145,4,FALSE) -> 15399099157007002 | E59: =VLOOKUP(A59,[1]Sheet3!$B$3:$G$145,1,FALSE) -> 3153993208716 | F59: =VLOOKUP(A59,[2]Sheet1!$CE$2:$CS$1539,15,FALSE) -> 195.00 | G59: 32.50 | H59: =VLOOKUP(A59,[1]Sheet3!$B$3:$G$145,6,FALSE) -> 80.6 | I59: 40.30 | J59: 72.80
A60: 1153991503102 | B60: =VLOOKUP(A60,[1]Sheet3!$B$3:$G$145,2,FALSE) -> 云南省广播电视局陇川中波台 | C60: =VLOOKUP(A60,[1]Sheet3!$B$3:$G$145,3,FALSE) -> 文秘 | D60: =VLOOKUP(A60,[1]Sheet3!$B$3:$G$145,4,FALSE) -> 15399099157031001 | E60: =VLOOKUP(A60,[1]Sheet3!$B$3:$G$145,1,FALSE) -> 1153991503102 | F60: =VLOOKUP(A60,[2]Sheet1!$CE$2:$CS$1539,15,FALSE) -> 182.50 | G60: 30.42 | H60: =VLOOKUP(A60,[1]Sheet3!$B$3:$G$145,6,FALSE) -> 82.1 | I60: 41.05 | J60: 71.47
A61: 1153991500512 | B61: =VLOOKUP(A61,[1]Sheet3!$B$3:$G$145,2,FALSE) -> 云南省广播电视局陇川中波台 | C61: =VLOOKUP(A61,[1]Sheet3!$B$3:$G$145,3,FALSE) -> 文秘 | D61: =VLOOKUP(A61,[1]Sheet3!$B$3:$G$145,4,FALSE) -> 15399099157031001 | E61: =VLOOKUP(A61,[1]Sheet3!$B$3:$G$145,1,FALSE) -> 1153991500512 | F61: =VLOOKUP(A61,[2]Sheet1!$CE$2:$CS$1539,15,FALSE) -> 173.00 | G61: 28.83 | H61: =VLOOKUP(A61,[1]Sheet3!$B$3:$G$145,6,FALSE) -> 80.6 | I61: 40.30 | J61: 69.13
A62: 3153993205828 | B62: =VLOOKUP(A62,[1]Sheet3!$B$3:$G$145,2,FALSE) -> 云南省广播电视局陇川中波台 | C62: =VLOOKUP(A62,[1]Sheet3!$B$3:$G$145,3,FALSE) -> 广播电视工程 | D62: =VLOOKUP(A62,[1]Sheet3!$B$3:$G$145,4,FALSE) -> 15399099157031002 | E62: =VLOOKUP(A62,[1]Sheet3!$B$3:$G$145,1,FALSE) -> 3153993205828 | F62: =VLOOKUP(A62,[2]Sheet1!$CE$2:$CS$1539,15,FALSE) -> 138.00 | G62: 23.00 | H62: =VLOOKUP(A62,[1]Sheet3!$B$3:$G$145,6,FALSE) -> 83.6 | I62: 41.80 | J62: 64.80
A63: 3153993206106 | B63: =VLOOKUP(A63,[1]Sheet3!$B$3:$G$145,2,FALSE) -> 云南省广播电视局陇川中波台 | C63: =VLOOKUP(A63,[1]Sheet3!$B$3:$G$145,3,FALSE) -> 广播电视工程 | D63: =VLOOKUP(A63,[1]Sheet3!$B$3:$G$145,4,FALSE) -> 15399099157031002 | E63: =VLOOKUP(A63,[1]Sheet3!$B$3:$G$145,1,FALSE) -> 3153993206106 | F63: =VLOOKUP(A63,[2]Sheet1!$CE$2:$CS$1539,15,FALSE) -> 165.50 | G63: 27.58 | H63: =VLOOKUP(A63,[1]Sheet3!$B$3:$G$145,6,FALSE) -> 79 | I63: 39.50 | J63: 67.08
A64: 1153991503708 | B64: =VLOOKUP(A64,[1]Sheet3!$B$3:$G$145,2,FALSE) -> 云南省广播电视局绿春中波台 | C64: =VLOOKUP(A64,[1]Sheet3!$B$3:$G$145,3,FALSE) -> 文秘 | D64: =VLOOKUP(A64,[1]Sheet3!$B$3:$G$145,4,FALSE) -> 15399099157018001 | E64: =VLOOKUP(A64,[1]Sheet3!$B$3:$G$145,1,FALSE) -> 1153991503708 | F64: =VLOOKUP(A64,[2]Sheet1!$CE$2:$CS$1539,15,FALSE) -> 177.50 | G64: 29.58 | H64: =VLOOKUP(A64,[1]Sheet3!$B$3:$G$145,6,FALSE) -> 78.6 | I64: 39.30 | J64: 68.88
A65: 1153991504130 | B65: =VLOOKUP(A65,[1]Sheet3!$B$3:$G$145,2,FALSE) -> 云南省广播电视局绿春中波台 | C65: =VLOOKUP(A65,[1]Sheet3!$B$3:$G$145,3,FALSE) -> 文秘 | D65: =VLOOKUP(A65,[1]Sheet3!$B$3:$G$145,4,FALSE) -> 15399099157018001 | E65: =VLOOKUP(A65,[1]Sheet3!$B$3:$G$145,1,FALSE) -> 1153991504130 | F65: =VLOOKUP(A65,[2]Sheet1!$CE$2:$CS$1539,15,FALSE) -> 169.50 | G65: 28.25 | H65: =VLOOKUP(A65,[1]Sheet3!$B$3:$G$145,6,FALSE) -> 77.6 | I65: 38.80 | J65: 67.05
A66: 3153993205506 | B66: =VLOOKUP(A66,[1]Sheet3!$B$3:$G$145,2,FALSE) -> 云南省广播电视局绿春中波台 | C66: =VLOOKUP(A66,[1]Sheet3!$B$3:$G$145,3,FALSE) -> 广播电视工程 | D66: =VLOOKUP(A66,[1]Sheet3!$B$3:$G$145,4,FALSE) -> 15399099157018002 | E66: =VLOOKUP(A66,[1]Sheet3!$B$3:$G$145,1,FALSE) -> 3153993205506 | F66: =VLOOKUP(A66,[2]Sheet1!$CE$2:$CS$1539,15,FALSE) -> 166.00 | G66: 27.67 | H66: =VLOOKUP(A66,[1]Sheet3!$B$3:$G$145,6,FALSE) -> 81.6 | I66: 40.80 | J66: 68.47
A67: 3153993205505 | B67: =VLOOKUP(A67,[1]Sheet3!$B$3:$G$145,2,FALSE) -> 云南省广播电视局绿春中波台 | C67: =VLOOKUP(A67,[1]Sheet3!$B$3:$G$145,3,FALSE) -> 广播电视工程 | D67: =VLOOKUP(A67,[1]Sheet3!$B$3:$G$145,4,FALSE) -> 15399099157018002 | E67: =VLOOKUP(A67,[1]Sheet3!$B$3:$G$145,1,FALSE) -> 3153993205505 | F67: =VLOOKUP(A67,[2]Sheet1!$CE$2:$CS$1539,15,FALSE) -> 164.00 | G67: =(F67/300*100)*0.5 -> 27.33 | H67: =VLOOKUP(A67,[1]Sheet3!$B$3:$G$145,6,FALSE) -> 79.2 | I67: =H67*0.5 -> 39.60 | J67: =G67+I67 -> 66.93
A68: 1153991505229 | B68: =VLOOKUP(A68,[1]Sheet3!$B$3:$G$145,2,FALSE) -> 云南省广播电视局麻栗坡中波台 | C68: =VLOOKUP(A68,[1]Sheet3!$B$3:$G$145,3,FALSE) -> 文秘 | D68: =VLOOKUP(A68,[1]Sheet3!$B$3:$G$145,4,FALSE) -> 15399099157019001 | E68: =VLOOKUP(A68,[1]Sheet3!$B$3:$G$145,1,FALSE) -> 1153991505229 | F68: =VLOOKUP(A68,[2]Sheet1!$CE$2:$CS$1539,15,FALSE) -> 194.00 | G68: 32.33 | H68: =VLOOKUP(A68,[1]Sheet3!$B$3:$G$145,6,FALSE) -> 83.1 | I68: 41.55 | J68: 73.88
A69: 1153991500705 | B69: =VLOOKUP(A69,[1]Sheet3!$B$3:$G$145,2,FALSE) -> 云南省广播电视局麻栗坡中波台 | C69: =VLOOKUP(A69,[1]Sheet3!$B$3:$G$145,3,FALSE) -> 文秘 | D69: =VLOOKUP(A69,[1]Sheet3!$B$3:$G$145,4,FALSE) -> 15399099157019001 | E69: =VLOOKUP(A69,[1]Sheet3!$B$3:$G$145,1,FALSE) -> 1153991500705 | F69: =VLOOKUP(A69,[2]Sheet1!$CE$2:$CS$1539,15,FALSE) -> 180.00 | G69: 30.00 | H69: =VLOOKUP(A69,[1]Sheet3!$B$3:$G$145,6,FALSE) -> 79.1 | I69: 39.55 | J69: 69.55
A70: 3153993207628 | B70: =VLOOKUP(A70,[1]Sheet3!$B$3:$G$145,2,FALSE) -> 云南省广播电视局麻栗坡中波台 | C70: =VLOOKUP(A70,[1]Sheet3!$B$3:$G$145,3,FALSE) -> 广播电视工程 | D70: =VLOOKUP(A70,[1]Sheet3!$B$3:$G$145,4,FALSE) -> 15399099157019002 | E70: =VLOOKUP(A70,[1]Sheet3!$B$3:$G$145,1,FALSE) -> 3153993207628 | F70: =VLOOKUP(A70,[2]Sheet1!$CE$2:$CS$1539,15,FALSE) -> 191.00 | G70: 31.83 | H70: =VLOOKUP(A70,[1]Sheet3!$B$3:$G$145,6,FALSE) -> 81.6 | I70: 40.80 | J70: 72.63
A71: 3153993208301 | B71: =VLOOKUP(A71,[1]Sheet3!$B$3:$G$145,2,FALSE) -> 云南省广播电视局麻栗坡中波台 | C71: =VLOOKUP(A71,[1]Sheet3!$B$3:$G$145,3,FALSE) -> 广播电视工程 | D71: =VLOOKUP(A71,[1]Sheet3!$B$3:$G$145,4,FALSE) -> 15399099157019002 | E71: =VLOOKUP(A71,[1]Sheet3!$B$3:$G$145,1,FALSE) -> 3153993208301 | F71: =VLOOKUP(A71,[2]Sheet1!$CE$2:$CS$1539,15,FALSE) -> 190.50 | G71: 31.75 | H71: =VLOOKUP(A71,[1]Sheet3!$B$3:$G$145,6,FALSE) -> 81 | I71: 40.50 | J71: 72.25
A72: 3153993204930 | B72: =VLOOKUP(A72,[1]Sheet3!$B$3:$G$145,2,FALSE) -> 云南省广播电视局麻栗坡中波台 | C72: =VLOOKUP(A72,[1]Sheet3!$B$3:$G$145,3,FALSE) -> 广播电视工程 | D72: =VLOOKUP(A72,[1]Sheet3!$B$3:$G$145,4,FALSE) -> 15399099157019002 | E72: =VLOOKUP(A72,[1]Sheet3!$B$3:$G$145,1,FALSE) -> 3153993204930 | F72: =VLOOKUP(A72,[2]Sheet1!$CE$2:$CS$1539,15,FALSE) -> 172.50 | G72: 28.75 | H72: =VLOOKUP(A72,[1]Sheet3!$B$3:$G$145,6,FALSE) -> 80.4 | I72: 40.20 | J72: 68.95
A73: 3153993205914 | B73: =VLOOKUP(A73,[1]Sheet3!$B$3:$G$145,2,FALSE) -> 云南省广播电视局麻栗坡中波台 | C73: =VLOOKUP(A73,[1]Sheet3!$B$3:$G$145,3,FALSE) -> 广播电视工程 | D73: =VLOOKUP(A73,[1]Sheet3!$B$3:$G$145,4,FALSE) -> 15399099157019002 | E73: =VLOOKUP(A73,[1]Sheet3!$B$3:$G$145,1,FALSE) -> 3153993205914 | F73: =VLOOKUP(A73,[2]Sheet1!$CE$2:$CS$1539,15,FALSE) -> 201.00 | G73: 33.50 | H73: =VLOOKUP(A73,[1]Sheet3!$B$3:$G$145,6,FALSE) -> 79.2 | I73: 39.60 | J73: 73.10
A74: 3153993208411 | B74: =VLOOKUP(A74,[1]Sheet3!$B$3:$G$145,2,FALSE) -> 云南省广播电视局麻栗坡中波台 | C74: =VLOOKUP(A74,[1]Sheet3!$B$3:$G$145,3,FALSE) -> 广播电视工程 | D74: =VLOOKUP(A74,[1]Sheet3!$B$3:$G$145,4,FALSE) -> 15399099157019002 | E74: =VLOOKUP(A74,[1]Sheet3!$B$3:$G$145,1,FALSE) -> 3153993208411 | F74: =VLOOKUP(A74,[2]Sheet1!$CE$2:$CS$1539,15,FALSE) -> 170.50 | G74: 28.42 | H74: =VLOOKUP(A74,[1]Sheet3!$B$3:$G$145,6,FALSE) -> 78.6 | I74: 39.30 | J74: 67.72
A75: 1153991501105 | B75: =VLOOKUP(A75,[1]Sheet3!$B$3:$G$145,2,FALSE) -> 云南省广播电视局马关中波台 | C75: =VLOOKUP(A75,[1]Sheet3!$B$3:$G$145,3,FALSE) -> 会计 | D75: =VLOOKUP(A75,[1]Sheet3!$B$3:$G$145,4,FALSE) -> 15399099157020001 | E75: =VLOOKUP(A75,[1]Sheet3!$B$3:$G$145,1,FALSE) -> 1153991501105 | F75: =VLOOKUP(A75,[2]Sheet1!$CE$2:$CS$1539,15,FALSE) -> 192.50 | G75: 32.08 | H75: =VLOOKUP(A75,[1]Sheet3!$B$3:$G$145,6,FALSE) -> 79.56 | I75: 39.78 | J75: 71.86
A76: 1153991500729 | B76: =VLOOKUP(A76,[1]Sheet3!$B$3:$G$145,2,FALSE) -> 云南省广播电视局马关中波台 | C76: =VLOOKUP(A76,[1]Sheet3!$B$3:$G$145,3,FALSE) -> 会计 | D76: =VLOOKUP(A76,[1]Sheet3!$B$3:$G$145,4,FALSE) -> 15399099157020001 | E76: =VLOOKUP(A76,[1]Sheet3!$B$3:$G$145,1,FALSE) -> 1153991500729 | F76: =VLOOKUP(A76,[2]Sheet1!$CE$2:$CS$1539,15,FALSE) -> 209.50 | G76: 34.92 | H76: =VLOOKUP(A76,[1]Sheet3!$B$3:$G$145,6,FALSE) -> 77 | I76: 38.50 | J76: 73.42
A77: 1153991500726 | B77: =VLOOKUP(A77,[1]Sheet3!$B$3:$G$145,2,FALSE) -> 云南省广播电视局马关中波台 | C77: =VLOOKUP(A77,[1]Sheet3!$B$3:$G$145,3,FALSE) -> 文秘 | D77: =VLOOKUP(A77,[1]Sheet3!$B$3:$G$145,4,FALSE) -> 15399099157020002 | E77: =VLOOKUP(A77,[1]Sheet3!$B$3:$G$145,1,FALSE) -> 1153991500726 | F77: =VLOOKUP(A77,[2]Sheet1!$CE$2:$CS$1539,15,FALSE) -> 187.50 | G77: 31.25 | H77: =VLOOKUP(A77,[1]Sheet3!$B$3:$G$145,6,FALSE) -> 80.8 | I77: 40.40 | J77: 71.65
A78: 1153991500912 | B78: =VLOOKUP(A78,[1]Sheet3!$B$3:$G$145,2,FALSE) -> 云南省广播电视局马关中波台 | C78: =VLOOKUP(A78,[1]Sheet3!$B$3:$G$145,3,FALSE) -> 文秘 | D78: =VLOOKUP(A78,[1]Sheet3!$B$3:$G$145,4,FALSE) -> 15399099157020002 | E78: =VLOOKUP(A78,[1]Sheet3!$B$3:$G$145,1,FALSE) -> 1153991500912 | F78: =VLOOKUP(A78,[2]Sheet1!$CE$2:$CS$1539,15,FALSE) -> 191.00 | G78: 31.83 | H78: =VLOOKUP(A78,[1]Sheet3!$B$3:$G$145,6,FALSE) -> 80.4 | I78: 40.20 | J78: 72.03
A79: 1153991500417 | B79: =VLOOKUP(A79,[1]Sheet3!$B$3:$G$145,2,FALSE) -> 云南省广播电视局马关中波台 | C79: =VLOOKUP(A79,[1]Sheet3!$B$3:$G$145,3,FALSE) -> 文秘 | D79: =VLOOKUP(A79,[1]Sheet3!$B$3:$G$145,4,FALSE) -> 15399099157020002 | E79: =VLOOKUP(A79,[1]Sheet3!$B$3:$G$145,1,FALSE) -> 1153991500417 | F79: =VLOOKUP(A79,[2]Sheet1!$CE$2:$CS$1539,15,FALSE) -> 191.00 | G79: 31.83 | H79: =VLOOKUP(A79,[1]Sheet3!$B$3:$G$145,6,FALSE) -> 80.3 | I79: 40.15 | J79: 71.98
A80: 1153991500913 | B80: =VLOOKUP(A80,[1]Sheet3!$B$3:$G$145,2,FALSE) -> 云南省广播电视局勐腊中波台 | C80: =VLOOKUP(A80,[1]Sheet3!$B$3:$G$145,3,FALSE) -> 文秘 | D80: =VLOOKUP(A80,[1]Sheet3!$B$3:$G$145,4,FALSE) -> 15399099157028001 | E80: =VLOOKUP(A80,[1]Sheet3!$B$3:$G$145,1,FALSE) -> 1153991500913 | F80: =VLOOKUP(A80,[2]Sheet1!$CE$2:$CS$1539,15,FALSE) -> 153.50 | G80: 25.58 | H80: =VLOOKUP(A80,[1]Sheet3!$B$3:$G$145,6,FALSE) -> 78.9 | I80: 39.45 | J80: 65.03
A81: 1153991502021 | B81: =VLOOKUP(A81,[1]Sheet3!$B$3:$G$145,2,FALSE) -> 云南省广播电视局勐腊中波台 | C81: =VLOOKUP(A81,[1]Sheet3!$B$3:$G$145,3,FALSE) -> 文秘 | D81: =VLOOKUP(A81,[1]Sheet3!$B$3:$G$145,4,FALSE) -> 15399099157028001 | E81: =VLOOKUP(A81,[1]Sheet3!$B$3:$G$145,1,FALSE) -> 1153991502021 | F81: =VLOOKUP(A81,[2]Sheet1!$CE$2:$CS$1539,15,FALSE) -> 157.00 | G81: 26.17 | H81: =VLOOKUP(A81,[1]Sheet3!$B$3:$G$145,6,FALSE) -> 0 | I81: 0.00 | J81: 26.17
A82: 3153993207721 | B82: =VLOOKUP(A82,[1]Sheet3!$B$3:$G$145,2,FALSE) -> 云南省广播电视局勐腊中波台 | C82: =VLOOKUP(A82,[1]Sheet3!$B$3:$G$145,3,FALSE) -> 广播电视工程 | D82: =VLOOKUP(A82,[1]Sheet3!$B$3:$G$145,4,FALSE) -> 15399099157028002 | E82: =VLOOKUP(A82,[1]Sheet3!$B$3:$G$145,1,FALSE) -> 3153993207721 | F82: =VLOOKUP(A82,[2]Sheet1!$CE$2:$CS$1539,15,FALSE) -> 178.50 | G82: 29.75 | H82: =VLOOKUP(A82,[1]Sheet3!$B$3:$G$145,6,FALSE) -> 80.2 | I82: 40.10 | J82: 69.85
A83: 3153993207707 | B83: =VLOOKUP(A83,[1]Sheet3!$B$3:$G$145,2,FALSE) -> 云南省广播电视局勐腊中波台 | C83: =VLOOKUP(A83,[1]Sheet3!$B$3:$G$145,3,FALSE) -> 广播电视工程 | D83: =VLOOKUP(A83,[1]Sheet3!$B$3:$G$145,4,FALSE) -> 15399099157028002 | E83: =VLOOKUP(A83,[1]Sheet3!$B$3:$G$145,1,FALSE) -> 3153993207707 | F83: =VLOOKUP(A83,[2]Sheet1!$CE$2:$CS$1539,15,FALSE) -> 148.00 | G83: 24.67 | H83: =VLOOKUP(A83,[1]Sheet3!$B$3:$G$145,6,FALSE) -> 74.9 | I83: 37.45 | J83: 62.12
A84: 1153991500925 | B84: =VLOOKUP(A84,[1]Sheet3!$B$3:$G$145,2,FALSE) -> 云南省广播电视局孟连中波台 | C84: =VLOOKUP(A84,[1]Sheet3!$B$3:$G$145,3,FALSE) -> 会计 | D84: =VLOOKUP(A84,[1]Sheet3!$B$3:$G$145,4,FALSE) -> 15399099157025001 | E84: =VLOOKUP(A84,[1]Sheet3!$B$3:$G$145,1,FALSE) -> 1153991500925 | F84: =VLOOKUP(A84,[2]Sheet1!$CE$2:$CS$1539,15,FALSE) -> 197.50 | G84: 32.92 | H84: =VLOOKUP(A84,[1]Sheet3!$B$3:$G$145,6,FALSE) -> 78.2 | I84: 39.10 | J84: 72.02
A85: 1153991503828 | B85: =VLOOKUP(A85,[1]Sheet3!$B$3:$G$145,2,FALSE) -> 云南省广播电视局孟连中波台 | C85: =VLOOKUP(A85,[1]Sheet3!$B$3:$G$145,3,FALSE) -> 会计 | D85: =VLOOKUP(A85,[1]Sheet3!$B$3:$G$145,4,FALSE) -> 15399099157025001 | E85: =VLOOKUP(A85,[1]Sheet3!$B$3:$G$145,1,FALSE) -> 1153991503828 | F85: =VLOOKUP(A85,[2]Sheet1!$CE$2:$CS$1539,15,FALSE) -> 166.00 | G85: 27.67 | H85: =VLOOKUP(A85,[1]Sheet3!$B$3:$G$145,6,FALSE) -> 75.4 | I85: 37.70 | J85: 65.37
A86: 1153991500305 | B86: =VLOOKUP(A86,[1]Sheet3!$B$3:$G$145,2,FALSE) -> 云南省广播电视局怒江中波台 | C86: =VLOOKUP(A86,[1]Sheet3!$B$3:$G$145,3,FALSE) -> 文秘 | D86: =VLOOKUP(A86,[1]Sheet3!$B$3:$G$145,4,FALSE) -> 15399099157008001 | E86: =VLOOKUP(A86,[1]Sheet3!$B$3:$G$145,1,FALSE) -> 1153991500305 | F86: =VLOOKUP(A86,[2]Sheet1!$CE$2:$CS$1539,15,FALSE) -> 204.00 | G86: 34.00 | H86: =VLOOKUP(A86,[1]Sheet3!$B$3:$G$145,6,FALSE) -> 82.2 | I86: 41.10 | J86: 75.10
A87: 1153991502305 | B87: =VLOOKUP(A87,[1]Sheet3!$B$3:$G$145,2,FALSE) -> 云南省广播电视局怒江中波台 | C87: =VLOOKUP(A87,[1]Sheet3!$B$3:$G$145,3,FALSE) -> 文秘 | D87: =VLOOKUP(A87,[1]Sheet3!$B$3:$G$145,4,FALSE) -> 15399099157008001 | E87: =VLOOKUP(A87,[1]Sheet3!$B$3:$G$145,1,FALSE) -> 1153991502305 | F87: =VLOOKUP(A87,[2]Sheet1!$CE$2:$CS$1539,15,FALSE) -> 193.00 | G87: 32.17 | H87: =VLOOKUP(A87,[1]Sheet3!$B$3:$G$145,6,FALSE) -> 81.8 | I87: 40.90 | J87: 73.07
A88: 3153993208725 | B88: =VLOOKUP(A88,[1]Sheet3!$B$3:$G$145,2,FALSE) -> 云南省广播电视局怒江中波台 | C88: =VLOOKUP(A88,[1]Sheet3!$B$3:$G$145,3,FALSE) -> 广播电视工程 | D88: =VLOOKUP(A88,[1]Sheet3!$B$3:$G$145,4,FALSE) -> 15399099157008002 | E88: =VLOOKUP(A88,[1]Sheet3!$B$3:$G$145,1,FALSE) -> 3153993208725 | F88: =VLOOKUP(A88,[2]Sheet1!$CE$2:$CS$1539,15,FALSE) -> 181.50 | G88: 30.25 | H88: =VLOOKUP(A88,[1]Sheet3!$B$3:$G$145,6,FALSE) -> 79.8 | I88: 39.90 | J88: 70.15
A89: 3153993205630 | B89: =VLOOKUP(A89,[1]Sheet3!$B$3:$G$145,2,FALSE) -> 云南省广播电视局怒江中波台 | C89: =VLOOKUP(A89,[1]Sheet3!$B$3:$G$145,3,FALSE) -> 广播电视工程 | D89: =VLOOKUP(A89,[1]Sheet3!$B$3:$G$145,4,FALSE) -> 15399099157008002 | E89: =VLOOKUP(A89,[1]Sheet3!$B$3:$G$145,1,FALSE) -> 3153993205630 | F89: =VLOOKUP(A89,[2]Sheet1!$CE$2:$CS$1539,15,FALSE) -> 153.00 | G89: 25.50 | H89: =VLOOKUP(A89,[1]Sheet3!$B$3:$G$145,6,FALSE) -> 0 | I89: 0.00 | J89: 25.50
A90: 1153991501611 | B90: =VLOOKUP(A90,[1]Sheet3!$B$3:$G$145,2,FALSE) -> 云南省广播电视局普洱701台 | C90: =VLOOKUP(A90,[1]Sheet3!$B$3:$G$145,3,FALSE) -> 文秘 | D90: =VLOOKUP(A90,[1]Sheet3!$B$3:$G$145,4,FALSE) -> 15399099157022001 | E90: =VLOOKUP(A90,[1]Sheet3!$B$3:$G$145,1,FALSE) -> 1153991501611 | F90: =VLOOKUP(A90,[2]Sheet1!$CE$2:$CS$1539,15,FALSE) -> 193.00 | G90: 32.17 | H90: =VLOOKUP(A90,[1]Sheet3!$B$3:$G$145,6,FALSE) -> 80 | I90: 40.00 | J90: 72.17
A91: 1153991505428 | B91: =VLOOKUP(A91,[1]Sheet3!$B$3:$G$145,2,FALSE) -> 云南省广播电视局普洱701台 | C91: =VLOOKUP(A91,[1]Sheet3!$B$3:$G$145,3,FALSE) -> 文秘 | D91: =VLOOKUP(A91,[1]Sheet3!$B$3:$G$145,4,FALSE) -> 15399099157022001 | E91: =VLOOKUP(A91,[1]Sheet3!$B$3:$G$145,1,FALSE) -> 1153991505428 | F91: =VLOOKUP(A91,[2]Sheet1!$CE$2:$CS$1539,15,FALSE) -> 192.50 | G91: 32.08 | H91: =VLOOKUP(A91,[1]Sheet3!$B$3:$G$145,6,FALSE) -> 79.9 | I91: 39.95 | J91: 72.03
A92: 3153993207425 | B92: =VLOOKUP(A92,[1]Sheet3!$B$3:$G$145,2,FALSE) -> 云南省广播电视局普洱701台 | C92: =VLOOKUP(A92,[1]Sheet3!$B$3:$G$145,3,FALSE) -> 广播电视工程 | D92: =VLOOKUP(A92,[1]Sheet3!$B$3:$G$145,4,FALSE) -> 15399099157022002 | E92: =VLOOKUP(A92,[1]Sheet3!$B$3:$G$145,1,FALSE) -> 3153993207425 | F92: =VLOOKUP(A92,[2]Sheet1!$CE$2:$CS$1539,15,FALSE) -> 194.50 | G92: 32.42 | H92: =VLOOKUP(A92,[1]Sheet3!$B$3:$G$145,6,FALSE) -> 83 | I92: 41.50 | J92: 73.92
A93: 3153993208923 | B93: =VLOOKUP(A93,[1]Sheet3!$B$3:$G$145,2,FALSE) -> 云南省广播电视局普洱701台 | C93: =VLOOKUP(A93,[1]Sheet3!$B$3:$G$145,3,FALSE) -> 广播电视工程 | D93: =VLOOKUP(A93,[1]Sheet3!$B$3:$G$145,4,FALSE) -> 15399099157022002 | E93: =VLOOKUP(A93,[1]Sheet3!$B$3:$G$145,1,FALSE) -> 3153993208923 | F93: =VLOOKUP(A93,[2]Sheet1!$CE$2:$CS$1539,15,FALSE) -> 185.50 | G93: 30.92 | H93: =VLOOKUP(A93,[1]Sheet3!$B$3:$G$145,6,FALSE) -> 80.9 | I93: 40.45 | J93: 71.37
A94: 1153991500927 | B94: =VLOOKUP(A94,[1]Sheet3!$B$3:$G$145,2,FALSE) -> 云南省广播电视局瑞丽中波台 | C94: =VLOOKUP(A94,[1]Sheet3!$B$3:$G$145,3,FALSE) -> 文秘 | D94: =VLOOKUP(A94,[1]Sheet3!$B$3:$G$145,4,FALSE) -> 15399099157030001 | E94: =VLOOKUP(A94,[1]Sheet3!$B$3:$G$145,1,FALSE) -> 1153991500927 | F94: =VLOOKUP(A94,[2]Sheet1!$CE$2:$CS$1539,15,FALSE) -> 198.50 | G94: 33.08 | H94: =VLOOKUP(A94,[1]Sheet3!$B$3:$G$145,6,FALSE) -> 85.2 | I94: 42.60 | J94: 75.68
A95: 1153991501302 | B95: =VLOOKUP(A95,[1]Sheet3!$B$3:$G$145,2,FALSE) -> 云南省广播电视局瑞丽中波台 | C95: =VLOOKUP(A95,[1]Sheet3!$B$3:$G$145,3,FALSE) -> 文秘 | D95: =VLOOKUP(A95,[1]Sheet3!$B$3:$G$145,4,FALSE) -> 15399099157030001 | E95: =VLOOKUP(A95,[1]Sheet3!$B$3:$G$145,1,FALSE) -> 1153991501302 | F95: =VLOOKUP(A95,[2]Sheet1!$CE$2:$CS$1539,15,FALSE) -> 208.00 | G95: 34.67 | H95: =VLOOKUP(A95,[1]Sheet3!$B$3:$G$145,6,FALSE) -> 83.5 | I95: 41.75 | J95: 76.42
A96: 3153993206829 | B96: =VLOOKUP(A96,[1]Sheet3!$B$3:$G$145,2,FALSE) -> 云南省广播电视局瑞丽中波台 | C96: =VLOOKUP(A96,[1]Sheet3!$B$3:$G$145,3,FALSE) -> 广播电视工程 | D96: =VLOOKUP(A96,[1]Sheet3!$B$3:$G$145,4,FALSE) -> 15399099157030022 | E96: =VLOOKUP(A96,[1]Sheet3!$B$3:$G$145,1,FALSE) -> 3153993206829 | F96: =VLOOKUP(A96,[2]Sheet1!$CE$2:$CS$1539,15,FALSE) -> 179.50 | G96: 29.92 | H96: =VLOOKUP(A96,[1]Sheet3!$B$3:$G$145,6,FALSE) -> 79.4 | I96: 39.70 | J96: 69.62
A97: 3153993204411 | B97: =VLOOKUP(A97,[1]Sheet3!$B$3:$G$145,2,FALSE) -> 云南省广播电视局瑞丽中波台 | C97: =VLOOKUP(A97,[1]Sheet3!$B$3:$G$145,3,FALSE) -> 广播电视工程 | D97: =VLOOKUP(A97,[1]Sheet3!$B$3:$G$145,4,FALSE) -> 15399099157030022 | E97: =VLOOKUP(A97,[1]Sheet3!$B$3:$G$145,1,FALSE) -> 3153993204411 | F97: =VLOOKUP(A97,[2]Sheet1!$CE$2:$CS$1539,15,FALSE) -> 141.50 | G97: 23.58 | H97: =VLOOKUP(A97,[1]Sheet3!$B$3:$G$145,6,FALSE) -> 77.8 | I97: 38.90 | J97: 62.48
A98: 3153993208120 | B98: =VLOOKUP(A98,[1]Sheet3!$B$3:$G$145,2,FALSE) -> 云南省广播电视局事业发展中心 | C98: =VLOOKUP(A98,[1]Sheet3!$B$3:$G$145,3,FALSE) -> 广播电视工程 | D98: =VLOOKUP(A98,[1]Sheet3!$B$3:$G$145,4,FALSE) -> 15399099157002001 | E98: =VLOOKUP(A98,[1]Sheet3!$B$3:$G$145,1,FALSE) -> 3153993208120 | F98: =VLOOKUP(A98,[2]Sheet1!$CE$2:$CS$1539,15,FALSE) -> 202.50 | G98: 33.75 | H98: =VLOOKUP(A98,[1]Sheet3!$B$3:$G$145,6,FALSE) -> 82.3 | I98: 41.15 | J98: 74.90
A99: 3153993206107 | B99: =VLOOKUP(A99,[1]Sheet3!$B$3:$G$145,2,FALSE) -> 云南省广播电视局事业发展中心 | C99: =VLOOKUP(A99,[1]Sheet3!$B$3:$G$145,3,FALSE) -> 广播电视工程 | D99: =VLOOKUP(A99,[1]Sheet3!$B$3:$G$145,4,FALSE) -> 15399099157002001 | E99: =VLOOKUP(A99,[1]Sheet3!$B$3:$G$145,1,FALSE) -> 3153993206107 | F99: =VLOOKUP(A99,[2]Sheet1!$CE$2:$CS$1539,15,FALSE) -> 199.50 | G99: 33.25 | H99: =VLOOKUP(A99,[1]Sheet3!$B$3:$G$145,6,FALSE) -> 77.6 | I99: 38.80 | J99: 72.05
A100: 3153993312714 | B100: =VLOOKUP(A100,[1]Sheet3!$B$3:$G$145,2,FALSE) -> 云南省广播电视局事业发展中心 | C100: =VLOOKUP(A100,[1]Sheet3!$B$3:$G$145,3,FALSE) -> 广播电视工程 | D100: =VLOOKUP(A100,[1]Sheet3!$B$3:$G$145,4,FALSE) -> 15399099157002002 | E100: =VLOOKUP(A100,[1]Sheet3!$B$3:$G$145,1,FALSE) -> 3153993312714 | F100: =VLOOKUP(A100,[2]Sheet1!$CE$2:$CS$1539,15,FALSE) -> 194.50 | G100: 32.42 | H100: =VLOOKUP(A100,[1]Sheet3!$B$3:$G$145,6,FALSE) -> 81.1 | I100: 40.55 | J100: 72.97
A101: 3153993312205 | B101: =VLOOKUP(A101,[1]Sheet3!$B$3:$G$145,2,FALSE) -> 云南省广播电视局事业发展中心 | C101: =VLOOKUP(A101,[1]Sheet3!$B$3:$G$145,3,FALSE) -> 广播电视工程 | D101: =VLOOKUP(A101,[1]Sheet3!$B$3:$G$145,4,FALSE) -> 15399099157002002 | E101: =VLOOKUP(A101,[1]Sheet3!$B$3:$G$145,1,FALSE) -> 3153993312205 | F101: =VLOOKUP(A101,[2]Sheet1!$CE$2:$CS$1539,15,FALSE) -> 183.00 | G101: 30.50 | H101: =VLOOKUP(A101,[1]Sheet3!$B$3:$G$145,6,FALSE) -> 0 | I101: 0.00 | J101: 30.50
A102: 2153991205719 | B102: =VLOOKUP(A102,[1]Sheet3!$B$3:$G$145,2,FALSE) -> 云南省广播电视局事业发展中心 | C102: =VLOOKUP(A102,[1]Sheet3!$B$3:$G$145,3,FALSE) -> 编辑 | D102: =VLOOKUP(A102,[1]Sheet3!$B$3:$G$145,4,FALSE) -> 15399099157002003 | E102: =VLOOKUP(A102,[1]Sheet3!$B$3:$G$145,1,FALSE) -> 2153991205719 | F102: =VLOOKUP(A102,[2]Sheet1!$CE$2:$CS$1539,15,FALSE) -> 222.50 | G102: 37.08 | H102: =VLOOKUP(A102,[1]Sheet3!$B$3:$G$145,6,FALSE) -> 81.6 | I102: 40.80 | J102: 77.88
A103: 2153991201923 | B103: =VLOOKUP(A103,[1]Sheet3!$B$3:$G$145,2,FALSE) -> 云南省广播电视局事业发展中心 | C103: =VLOOKUP(A103,[1]Sheet3!$B$3:$G$145,3,FALSE) -> 编辑 | D103: =VLOOKUP(A103,[1]Sheet3!$B$3:$G$145,4,FALSE) -> 15399099157002003 | E103: =VLOOKUP(A103,[1]Sheet3!$B$3:$G$145,1,FALSE) -> 2153991201923 | F103: =VLOOKUP(A103,[2]Sheet1!$CE$2:$CS$1539,15,FALSE) -> 215.50 | G103: 35.92 | H103: =VLOOKUP(A103,[1]Sheet3!$B$3:$G$145,6,FALSE) -> 79.6 | I103: 39.80 | J103: 75.72
A104: 2153991200321 | B104: =VLOOKUP(A104,[1]Sheet3!$B$3:$G$145,2,FALSE) -> 云南省广播电视局事业发展中心 | C104: =VLOOKUP(A104,[1]Sheet3!$B$3:$G$145,3,FALSE) -> 编辑 | D104: =VLOOKUP(A104,[1]Sheet3!$B$3:$G$145,4,FALSE) -> 15399099157002003 | E104: =VLOOKUP(A104,[1]Sheet3!$B$3:$G$145,1,FALSE) -> 2153991200321 | F104: =VLOOKUP(A104,[2]Sheet1!$CE$2:$CS$1539,15,FALSE) -> 217.50 | G104: 36.25 | H104: =VLOOKUP(A104,[1]Sheet3!$B$3:$G$145,6,FALSE) -> 79.4 | I104: 39.70 | J104: 75.95
A105: 2153991202528 | B105: =VLOOKUP(A105,[1]Sheet3!$B$3:$G$145,2,FALSE) -> 云南省广播电视局事业发展中心 | C105: =VLOOKUP(A105,[1]Sheet3!$B$3:$G$145,3,FALSE) -> 编辑 | D105: =VLOOKUP(A105,[1]Sheet3!$B$3:$G$145,4,FALSE) -> 15399099157002003 | E105: =VLOOKUP(A105,[1]Sheet3!$B$3:$G$145,1,FALSE) -> 2153991202528 | F105: =VLOOKUP(A105,[2]Sheet1!$CE$2:$CS$1539,15,FALSE) -> 219.00 | G105: 36.50 | H105: =VLOOKUP(A105,[1]Sheet3!$B$3:$G$145,6,FALSE) -> 79.2 | I105: 39.60 | J105: 76.10
A106: 2153991205123 | B106: =VLOOKUP(A106,[1]Sheet3!$B$3:$G$145,2,FALSE) -> 云南省广播电视局事业发展中心 | C106: =VLOOKUP(A106,[1]Sheet3!$B$3:$G$145,3,FALSE) -> 编辑 | D106: =VLOOKUP(A106,[1]Sheet3!$B$3:$G$145,4,FALSE) -> 15399099157002003 | E106: =VLOOKUP(A106,[1]Sheet3!$B$3:$G$145,1,FALSE) -> 2153991205123 | F106: =VLOOKUP(A106,[2]Sheet1!$CE$2:$CS$1539,15,FALSE) -> 223.00 | G106: 37.17 | H106: =VLOOKUP(A106,[1]Sheet3!$B$3:$G$145,6,FALSE) -> 78.4 | I106: 39.20 | J106: 76.37
A107: 2153991207507 | B107: =VLOOKUP(A107,[1]Sheet3!$B$3:$G$145,2,FALSE) -> 云南省广播电视局事业发展中心 | C107: =VLOOKUP(A107,[1]Sheet3!$B$3:$G$145,3,FALSE) -> 编辑 | D107: =VLOOKUP(A107,[1]Sheet3!$B$3:$G$145,4,FALSE) -> 15399099157002003 | E107: =VLOOKUP(A107,[1]Sheet3!$B$3:$G$145,1,FALSE) -> 2153991207507 | F107: =VLOOKUP(A107,[2]Sheet1!$CE$2:$CS$1539,15,FALSE) -> 222.50 | G107: 37.08 | H107: =VLOOKUP(A107,[1]Sheet3!$B$3:$G$145,6,FALSE) -> 78.3 | I107: 39.15 | J107: 76.23
A108: 2153991206408 | B108: =VLOOKUP(A108,[1]Sheet3!$B$3:$G$145,2,FALSE) -> 云南省广播电视局事业发展中心 | C108: =VLOOKUP(A108,[1]Sheet3!$B$3:$G$145,3,FALSE) -> 编辑 | D108: =VLOOKUP(A108,[1]Sheet3!$B$3:$G$145,4,FALSE) -> 15399099157002003 | E108: =VLOOKUP(A108,[1]Sheet3!$B$3:$G$145,1,FALSE) -> 2153991206408 | F108: =VLOOKUP(A108,[2]Sheet1!$CE$2:$CS$1539,15,FALSE) -> 211.00 | G108: 35.17 | H108: =VLOOKUP(A108,[1]Sheet3!$B$3:$G$145,6,FALSE) -> 78 | I108: 39.00 | J108: 74.17
A109: 2153991208509 | B109: =VLOOKUP(A109,[1]Sheet3!$B$3:$G$145,2,FALSE) -> 云南省广播电视局事业发展中心 | C109: =VLOOKUP(A109,[1]Sheet3!$B$3:$G$145,3,FALSE) -> 编辑 | D109: =VLOOKUP(A109,[1]Sheet3!$B$3:$G$145,4,FALSE) -> 15399099157002004 | E109: =VLOOKUP(A109,[1]Sheet3!$B$3:$G$145,1,FALSE) -> 2153991208509 | F109: =VLOOKUP(A109,[2]Sheet1!$CE$2:$CS$1539,15,FALSE) -> 217.50 | G109: 36.25 | H109: =VLOOKUP(A109,[1]Sheet3!$B$3:$G$145,6,FALSE) -> 81.8 | I109: 40.90 | J109: 77.15
A110: 2153991207807 | B110: =VLOOKUP(A110,[1]Sheet3!$B$3:$G$145,2,FALSE) -> 云南省广播电视局事业发展中心 | C110: =VLOOKUP(A110,[1]Sheet3!$B$3:$G$145,3,FALSE) -> 编辑 | D110: =VLOOKUP(A110,[1]Sheet3!$B$3:$G$145,4,FALSE) -> 15399099157002004 | E110: =VLOOKUP(A110,[1]Sheet3!$B$3:$G$145,1,FALSE) -> 2153991207807 | F110: =VLOOKUP(A110,[2]Sheet1!$CE$2:$CS$1539,15,FALSE) -> 218.00 | G110: 36.33 | H110: =VLOOKUP(A110,[1]Sheet3!$B$3:$G$145,6,FALSE) -> 81.3 | I110: 40.65 | J110: 76.98
A111: 2153991201016 | B111: =VLOOKUP(A111,[1]Sheet3!$B$3:$G$145,2,FALSE) -> 云南省广播电视局事业发展中心 | C111: =VLOOKUP(A111,[1]Sheet3!$B$3:$G$145,3,FALSE) -> 编辑 | D111: =VLOOKUP(A111,[1]Sheet3!$B$3:$G$145,4,FALSE) -> 15399099157002004 | E111: =VLOOKUP(A111,[1]Sheet3!$B$3:$G$145,1,FALSE) -> 2153991201016 | F111: =VLOOKUP(A111,[2]Sheet1!$CE$2:$CS$1539,15,FALSE) -> 218.00 | G111: 36.33 | H111: =VLOOKUP(A111,[1]Sheet3!$B$3:$G$145,6,FALSE) -> 80.6 | I111: 40.30 | J111: 76.63
A112: 2153991204614 | B112: =VLOOKUP(A112,[1]Sheet3!$B$3:$G$145,2,FALSE) -> 云南省广播电视局事业发展中心 | C112: =VLOOKUP(A112,[1]Sheet3!$B$3:$G$145,3,FALSE) -> 编辑 | D112: =VLOOKUP(A112,[1]Sheet3!$B$3:$G$145,4,FALSE) -> 15399099157002004 | E112: =VLOOKUP(A112,[1]Sheet3!$B$3:$G$145,1,FALSE) -> 2153991204614 | F112: =VLOOKUP(A112,[2]Sheet1!$CE$2:$CS$1539,15,FALSE) -> 218.50 | G112: 36.42 | H112: =VLOOKUP(A112,[1]Sheet3!$B$3:$G$145,6,FALSE) -> 79.5 | I112: 39.75 | J112: 76.17
A113: 2153991200804 | B113: =VLOOKUP(A113,[1]Sheet3!$B$3:$G$145,2,FALSE) -> 云南省广播电视局事业发展中心 | C113: =VLOOKUP(A113,[1]Sheet3!$B$3:$G$145,3,FALSE) -> 编辑 | D113: =VLOOKUP(A113,[1]Sheet3!$B$3:$G$145,4,FALSE) -> 15399099157002004 | E113: =VLOOKUP(A113,[1]Sheet3!$B$3:$G$145,1,FALSE) -> 2153991200804 | F113: =VLOOKUP(A113,[2]Sheet1!$CE$2:$CS$1539,15,FALSE) -> 225.00 | G113: 37.50 | H113: =VLOOKUP(A113,[1]Sheet3!$B$3:$G$145,6,FALSE) -> 77.8 | I113: 38.90 | J113: 76.40
A114: 1153991500826 | B114: =VLOOKUP(A114,[1]Sheet3!$B$3:$G$145,2,FALSE) -> 云南省广播电视局腾冲中波台 | C114: =VLOOKUP(A114,[1]Sheet3!$B$3:$G$145,3,FALSE) -> 会计 | D114: =VLOOKUP(A114,[1]Sheet3!$B$3:$G$145,4,FALSE) -> 15399099157029001 | E114: =VLOOKUP(A114,[1]Sheet3!$B$3:$G$145,1,FALSE) -> 1153991500826 | F114: =VLOOKUP(A114,[2]Sheet1!$CE$2:$CS$1539,15,FALSE) -> 210.00 | G114: 35.00 | H114: =VLOOKUP(A114,[1]Sheet3!$B$3:$G$145,6,FALSE) -> 80.46 | I114: 40.23 | J114: 75.23
A115: 1153991502727 | B115: =VLOOKUP(A115,[1]Sheet3!$B$3:$G$145,2,FALSE) -> 云南省广播电视局腾冲中波台 | C115: =VLOOKUP(A115,[1]Sheet3!$B$3:$G$145,3,FALSE) -> 会计 | D115: =VLOOKUP(A115,[1]Sheet3!$B$3:$G$145,4,FALSE) -> 15399099157029001 | E115: =VLOOKUP(A115,[1]Sheet3!$B$3:$G$145,1,FALSE) -> 1153991502727 | F115: =VLOOKUP(A115,[2]Sheet1!$CE$2:$CS$1539,15,FALSE) -> 199.00 | G115: 33.17 | H115: =VLOOKUP(A115,[1]Sheet3!$B$3:$G$145,6,FALSE) -> 79.3 | I115: 39.65 | J115: 72.82
A116: 1153991502025 | B116: =VLOOKUP(A116,[1]Sheet3!$B$3:$G$145,2,FALSE) -> 云南省广播电视局文山703台 | C116: =VLOOKUP(A116,[1]Sheet3!$B$3:$G$145,3,FALSE) -> 会计 | D116: =VLOOKUP(A116,[1]Sheet3!$B$3:$G$145,4,FALSE) -> 15399099157004001 | E116: =VLOOKUP(A116,[1]Sheet3!$B$3:$G$145,1,FALSE) -> 1153991502025 | F116: =VLOOKUP(A116,[2]Sheet1!$CE$2:$CS$1539,15,FALSE) -> 210.00 | G116: 35.00 | H116: =VLOOKUP(A116,[1]Sheet3!$B$3:$G$145,6,FALSE) -> 81.3 | I116: 40.65 | J116: 75.65
A117: 1153991504425 | B117: =VLOOKUP(A117,[1]Sheet3!$B$3:$G$145,2,FALSE) -> 云南省广播电视局文山703台 | C117: =VLOOKUP(A117,[1]Sheet3!$B$3:$G$145,3,FALSE) -> 会计 | D117: =VLOOKUP(A117,[1]Sheet3!$B$3:$G$145,4,FALSE) -> 15399099157004001 | E117: =VLOOKUP(A117,[1]Sheet3!$B$3:$G$145,1,FALSE) -> 1153991504425 | F117: =VLOOKUP(A117,[2]Sheet1!$CE$2:$CS$1539,15,FALSE) -> 193.00 | G117: 32.17 | H117: =VLOOKUP(A117,[1]Sheet3!$B$3:$G$145,6,FALSE) -> 78.6 | I117: 39.30 | J117: 71.47
A118: 1153991502222 | B118: =VLOOKUP(A118,[1]Sheet3!$B$3:$G$145,2,FALSE) -> 云南省广播电视局西盟中波台 | C118: =VLOOKUP(A118,[1]Sheet3!$B$3:$G$145,3,FALSE) -> 文秘 | D118: =VLOOKUP(A118,[1]Sheet3!$B$3:$G$145,4,FALSE) -> 15399099157027001 | E118: =VLOOKUP(A118,[1]Sheet3!$B$3:$G$145,1,FALSE) -> 1153991502222 | F118: =VLOOKUP(A118,[2]Sheet1!$CE$2:$CS$1539,15,FALSE) -> 153.00 | G118: 25.50 | H118: =VLOOKUP(A118,[1]Sheet3!$B$3:$G$145,6,FALSE) -> 78.8 | I118: 39.40 | J118: 64.90
A119: 1153991504817 | B119: =VLOOKUP(A119,[1]Sheet3!$B$3:$G$145,2,FALSE) -> 云南省广播电视局西盟中波台 | C119: =VLOOKUP(A119,[1]Sheet3!$B$3:$G$145,3,FALSE) -> 文秘 | D119: =VLOOKUP(A119,[1]Sheet3!$B$3:$G$145,4,FALSE) -> 15399099157027001 | E119: =VLOOKUP(A119,[1]Sheet3!$B$3:$G$145,1,FALSE) -> 1153991504817 | F119: =VLOOKUP(A119,[2]Sheet1!$CE$2:$CS$1539,15,FALSE) -> 137.50 | G119: 22.92 | H119: =VLOOKUP(A119,[1]Sheet3!$B$3:$G$145,6,FALSE) -> 75.1 | I119: 37.55 | J119: 60.47
A120: 3153993205230 | B120: =VLOOKUP(A120,[1]Sheet3!$B$3:$G$145,2,FALSE) -> 云南省广播电视局西盟中波台 | C120: =VLOOKUP(A120,[1]Sheet3!$B$3:$G$145,3,FALSE) -> 广播电视工程 | D120: =VLOOKUP(A120,[1]Sheet3!$B$3:$G$145,4,FALSE) -> 15399099157027002 | E120: =VLOOKUP(A120,[1]Sheet3!$B$3:$G$145,1,FALSE) -> 3153993205230 | F120: =VLOOKUP(A120,[2]Sheet1!$CE$2:$CS$1539,15,FALSE) -> 146.00 | G120: 24.33 | H120: =VLOOKUP(A120,[1]Sheet3!$B$3:$G$145,6,FALSE) -> 81.6 | I120: 40.80 | J120: 65.13
A121: 3153993207408 | B121: =VLOOKUP(A121,[1]Sheet3!$B$3:$G$145,2,FALSE) -> 云南省广播电视局西盟中波台 | C121: =VLOOKUP(A121,[1]Sheet3!$B$3:$G$145,3,FALSE) -> 广播电视工程 | D121: =VLOOKUP(A121,[1]Sheet3!$B$3:$G$145,4,FALSE) -> 15399099157027002 | E121: =VLOOKUP(A121,[1]Sheet3!$B$3:$G$145,1,FALSE) -> 3153993207408 | F121: =VLOOKUP(A121,[2]Sheet1!$CE$2:$CS$1539,15,FALSE) -> 171.00 | G121: 28.50 | H121: =VLOOKUP(A121,[1]Sheet3!$B$3:$G$145,6,FALSE) -> 81.4 | I121: 40.70 | J121: 69.20
A122: 3153993207301 | B122: =VLOOKUP(A122,[1]Sheet3!$B$3:$G$145,2,FALSE) -> 云南省广播电视局西盟中波台 | C122: =VLOOKUP(A122,[1]Sheet3!$B$3:$G$145,3,FALSE) -> 广播电视工程 | D122: =VLOOKUP(A122,[1]Sheet3!$B$3:$G$145,4,FALSE) -> 15399099157027002 | E122: =VLOOKUP(A122,[1]Sheet3!$B$3:$G$145,1,FALSE) -> 3153993207301 | F122: =VLOOKUP(A122,[2]Sheet1!$CE$2:$CS$1539,15,FALSE) -> 152.00 | G122: 25.33 | H122: =VLOOKUP(A122,[1]Sheet3!$B$3:$G$145,6,FALSE) -> 80.6 | I122: 40.30 | J122: 65.63
A123: 3153993205927 | B123: =VLOOKUP(A123,[1]Sheet3!$B$3:$G$145,2,FALSE) -> 云南省广播电视局西盟中波台 | C123: =VLOOKUP(A123,[1]Sheet3!$B$3:$G$145,3,FALSE) -> 广播电视工程 | D123: =VLOOKUP(A123,[1]Sheet3!$B$3:$G$145,4,FALSE) -> 15399099157027002 | E123: =VLOOKUP(A123,[1]Sheet3!$B$3:$G$145,1,FALSE) -> 3153993205927 | F123: =VLOOKUP(A123,[2]Sheet1!$CE$2:$CS$1539,15,FALSE) -> 144.50 | G123: 24.08 | H123: =VLOOKUP(A123,[1]Sheet3!$B$3:$G$145,6,FALSE) -> 78.6 | I123: 39.30 | J123: 63.38
A124: 3153993206802 | B124: =VLOOKUP(A124,[1]Sheet3!$B$3:$G$145,2,FALSE) -> 云南省广播电视局西盟中波台 | C124: =VLOOKUP(A124,[1]Sheet3!$B$3:$G$145,3,FALSE) -> 广播电视工程 | D124: =VLOOKUP(A124,[1]Sheet3!$B$3:$G$145,4,FALSE) -> 15399099157027002 | E124: =VLOOKUP(A124,[1]Sheet3!$B$3:$G$145,1,FALSE) -> 3153993206802 | F124: =VLOOKUP(A124,[2]Sheet1!$CE$2:$CS$1539,15,FALSE) -> 133.50 | G124: 22.25 | H124: =VLOOKUP(A124,[1]Sheet3!$B$3:$G$145,6,FALSE) -> 76.4 | I124: 38.20 | J124: 60.45
A125: 1153991500625 | B125: =VLOOKUP(A125,[1]Sheet3!$B$3:$G$145,2,FALSE) -> 云南省广播电视局西双版纳中波台 | C125: =VLOOKUP(A125,[1]Sheet3!$B$3:$G$145,3,FALSE) -> 会计 | D125: =VLOOKUP(A125,[1]Sheet3!$B$3:$G$145,4,FALSE) -> 15399099157010001 | E125: =VLOOKUP(A125,[1]Sheet3!$B$3:$G$145,1,FALSE) -> 1153991500625 | F125: =VLOOKUP(A125,[2]Sheet1!$CE$2:$CS$1539,15,FALSE) -> 181.50 | G125: 30.25 | H125: =VLOOKUP(A125,[1]Sheet3!$B$3:$G$145,6,FALSE) -> 80.2 | I125: 40.10 | J125: 70.35
A126: 1153991503528 | B126: =VLOOKUP(A126,[1]Sheet3!$B$3:$G$145,2,FALSE) -> 云南省广播电视局西双版纳中波台 | C126: =VLOOKUP(A126,[1]Sheet3!$B$3:$G$145,3,FALSE) -> 会计 | D126: =VLOOKUP(A126,[1]Sheet3!$B$3:$G$145,4,FALSE) -> 15399099157010001 | E126: =VLOOKUP(A126,[1]Sheet3!$B$3:$G$145,1,FALSE) -> 1153991503528 | F126: =VLOOKUP(A126,[2]Sheet1!$CE$2:$CS$1539,15,FALSE) -> 201.00 | G126: 33.50 | H126: =VLOOKUP(A126,[1]Sheet3!$B$3:$G$145,6,FALSE) -> 79 | I126: 39.50 | J126: 73.00
A127: 1153991501927 | B127: =VLOOKUP(A127,[1]Sheet3!$B$3:$G$145,2,FALSE) -> 云南省广播电视局盈江中波台 | C127: =VLOOKUP(A127,[1]Sheet3!$B$3:$G$145,3,FALSE) -> 会计 | D127: =VLOOKUP(A127,[1]Sheet3!$B$3:$G$145,4,FALSE) -> 15399099157032001 | E127: =VLOOKUP(A127,[1]Sheet3!$B$3:$G$145,1,FALSE) -> 1153991501927 | F127: =VLOOKUP(A127,[2]Sheet1!$CE$2:$CS$1539,15,FALSE) -> 200.50 | G127: 33.42 | H127: =VLOOKUP(A127,[1]Sheet3!$B$3:$G$145,6,FALSE) -> 80.5 | I127: 40.25 | J127: 73.67
A128: 1153991502301 | B128: =VLOOKUP(A128,[1]Sheet3!$B$3:$G$145,2,FALSE) -> 云南省广播电视局盈江中波台 | C128: =VLOOKUP(A128,[1]Sheet3!$B$3:$G$145,3,FALSE) -> 会计 | D128: =VLOOKUP(A128,[1]Sheet3!$B$3:$G$145,4,FALSE) -> 15399099157032001 | E128: =VLOOKUP(A128,[1]Sheet3!$B$3:$G$145,1,FALSE) -> 1153991502301 | F128: =VLOOKUP(A128,[2]Sheet1!$CE$2:$CS$1539,15,FALSE) -> 201.50 | G128: 33.58 | H128: =VLOOKUP(A128,[1]Sheet3!$B$3:$G$145,6,FALSE) -> 79.3 | I128: 39.65 | J128: 73.23
A129: 1153991501821 | B129: =VLOOKUP(A129,[1]Sheet3!$B$3:$G$145,2,FALSE) -> 云南省广播电视局盈江中波台 | C129: =VLOOKUP(A129,[1]Sheet3!$B$3:$G$145,3,FALSE) -> 文秘 | D129: =VLOOKUP(A129,[1]Sheet3!$B$3:$G$145,4,FALSE) -> 15399099157032002 | E129: =VLOOKUP(A129,[1]Sheet3!$B$3:$G$145,1,FALSE) -> 1153991501821 | F129: =VLOOKUP(A129,[2]Sheet1!$CE$2:$CS$1539,15,FALSE) -> 200.00 | G129: 33.33 | H129: =VLOOKUP(A129,[1]Sheet3!$B$3:$G$145,6,FALSE) -> 83.2 | I129: 41.60 | J129: 74.93
A130: 1153991503602 | B130: =VLOOKUP(A130,[1]Sheet3!$B$3:$G$145,2,FALSE) -> 云南省广播电视局盈江中波台 | C130: =VLOOKUP(A130,[1]Sheet3!$B$3:$G$145,3,FALSE) -> 文秘 | D130: =VLOOKUP(A130,[1]Sheet3!$B$3:$G$145,4,FALSE) -> 15399099157032002 | E130: =VLOOKUP(A130,[1]Sheet3!$B$3:$G$145,1,FALSE) -> 1153991503602 | F130: =VLOOKUP(A130,[2]Sheet1!$CE$2:$CS$1539,15,FALSE) -> 203.00 | G130: 33.83 | H130: =VLOOKUP(A130,[1]Sheet3!$B$3:$G$145,6,FALSE) -> 83.1 | I130: 41.55 | J130: 75.38
A131: 1153991504214 | B131: =VLOOKUP(A131,[1]Sheet3!$B$3:$G$145,2,FALSE) -> 云南省广播电视局永仁698台 | C131: =VLOOKUP(A131,[1]Sheet3!$B$3:$G$145,3,FALSE) -> 文秘 | D131: =VLOOKUP(A131,[1]Sheet3!$B$3:$G$145,4,FALSE) -> 15399099157014001 | E131: =VLOOKUP(A131,[1]Sheet3!$B$3:$G$145,1,FALSE) -> 1153991504214 | F131: =VLOOKUP(A131,[2]Sheet1!$CE$2:$CS$1539,15,FALSE) -> 211.00 | G131: =(F131/300*100)*0.5 -> 35.17 | H131: =VLOOKUP(A131,[1]Sheet3!$B$3:$G$145,6,FALSE) -> 84.8 | I131: =H131*0.5 -> 42.40 | J131: =G131+I131 -> 77.57
A132: 1153991502524 | B132: =VLOOKUP(A132,[1]Sheet3!$B$3:$G$145,2,FALSE) -> 云南省广播电视局永仁698台 | C132: =VLOOKUP(A132,[1]Sheet3!$B$3:$G$145,3,FALSE) -> 文秘 | D132: =VLOOKUP(A132,[1]Sheet3!$B$3:$G$145,4,FALSE) -> 15399099157014001 | E132: =VLOOKUP(A132,[1]Sheet3!$B$3:$G$145,1,FALSE) -> 1153991502524 | F132: =VLOOKUP(A132,[2]Sheet1!$CE$2:$CS$1539,15,FALSE) -> 204.50 | G132: 34.08 | H132: =VLOOKUP(A132,[1]Sheet3!$B$3:$G$145,6,FALSE) -> 82.3 | I132: 41.15 | J132: 75.23
A133: 1153991500628 | B133: =VLOOKUP(A133,[1]Sheet3!$B$3:$G$145,2,FALSE) -> 云南省广播电视局元江694台 | C133: =VLOOKUP(A133,[1]Sheet3!$B$3:$G$145,3,FALSE) -> 文秘 | D133: =VLOOKUP(A133,[1]Sheet3!$B$3:$G$145,4,FALSE) -> 15399099157015001 | E133: =VLOOKUP(A133,[1]Sheet3!$B$3:$G$145,1,FALSE) -> 1153991500628 | F133: =VLOOKUP(A133,[2]Sheet1!$CE$2:$CS$1539,15,FALSE) -> 202.50 | G133: 33.75 | H133: =VLOOKUP(A133,[1]Sheet3!$B$3:$G$145,6,FALSE) -> 82.3 | I133: 41.15 | J133: 74.90
A134: 1153991502415 | B134: =VLOOKUP(A134,[1]Sheet3!$B$3:$G$145,2,FALSE) -> 云南省广播电视局元江694台 | C134: =VLOOKUP(A134,[1]Sheet3!$B$3:$G$145,3,FALSE) -> 文秘 | D134: =VLOOKUP(A134,[1]Sheet3!$B$3:$G$145,4,FALSE) -> 15399099157015001 | E134: =VLOOKUP(A134,[1]Sheet3!$B$3:$G$145,1,FALSE) -> 1153991502415 | F134: =VLOOKUP(A134,[2]Sheet1!$CE$2:$CS$1539,15,FALSE) -> 191.50 | G134: 31.92 | H134: =VLOOKUP(A134,[1]Sheet3!$B$3:$G$145,6,FALSE) -> 80.4 | I134: 40.20 | J134: 72.12
A135: 3153993206617 | B135: =VLOOKUP(A135,[1]Sheet3!$B$3:$G$145,2,FALSE) -> 云南省广播电视局元江694台 | C135: =VLOOKUP(A135,[1]Sheet3!$B$3:$G$145,3,FALSE) -> 广播电视工程 | D135: =VLOOKUP(A135,[1]Sheet3!$B$3:$G$145,4,FALSE) -> 15399099157015002 | E135: =VLOOKUP(A135,[1]Sheet3!$B$3:$G$145,1,FALSE) -> 3153993206617 | F135: =VLOOKUP(A135,[2]Sheet1!$CE$2:$CS$1539,15,FALSE) -> 186.50 | G135: 31.08 | H135: =VLOOKUP(A135,[1]Sheet3!$B$3:$G$145,6,FALSE) -> 81.6 | I135: 40.80 | J135: 71.88
A136: 3153993207229 | B136: =VLOOKUP(A136,[1]Sheet3!$B$3:$G$145,2,FALSE) -> 云南省广播电视局元江694台 | C136: =VLOOKUP(A136,[1]Sheet3!$B$3:$G$145,3,FALSE) -> 广播电视工程 | D136: =VLOOKUP(A136,[1]Sheet3!$B$3:$G$145,4,FALSE) -> 15399099157015002 | E136: =VLOOKUP(A136,[1]Sheet3!$B$3:$G$145,1,FALSE) -> 3153993207229 | F136: =VLOOKUP(A136,[2]Sheet1!$CE$2:$CS$1539,15,FALSE) -> 207.50 | G136: 34.58 | H136: =VLOOKUP(A136,[1]Sheet3!$B$3:$G$145,6,FALSE) -> 81 | I136: 40.50 | J136: 75.08
A137: 1153991503111 | B137: =VLOOKUP(A137,[1]Sheet3!$B$3:$G$145,2,FALSE) -> 云南省广播电视局昭通697台 | C137: =VLOOKUP(A137,[1]Sheet3!$B$3:$G$145,3,FALSE) -> 会计 | D137: =VLOOKUP(A137,[1]Sheet3!$B$3:$G$145,4,FALSE) -> 15399099157003001 | E137: =VLOOKUP(A137,[1]Sheet3!$B$3:$G$145,1,FALSE) -> 1153991503111 | F137: =VLOOKUP(A137,[2]Sheet1!$CE$2:$CS$1539,15,FALSE) -> 196.50 | G137: 32.75 | H137: =VLOOKUP(A137,[1]Sheet3!$B$3:$G$145,6,FALSE) -> 78.56 | I137: 39.28 | J137: 72.03
A138: 1153991503611 | B138: =VLOOKUP(A138,[1]Sheet3!$B$3:$G$145,2,FALSE) -> 云南省广播电视局昭通697台 | C138: =VLOOKUP(A138,[1]Sheet3!$B$3:$G$145,3,FALSE) -> 会计 | D138: =VLOOKUP(A138,[1]Sheet3!$B$3:$G$145,4,FALSE) -> 15399099157003001 | E138: =VLOOKUP(A138,[1]Sheet3!$B$3:$G$145,1,FALSE) -> 1153991503611 | F138: =VLOOKUP(A138,[2]Sheet1!$CE$2:$CS$1539,15,FALSE) -> 202.50 | G138: 33.75 | H138: =VLOOKUP(A138,[1]Sheet3!$B$3:$G$145,6,FALSE) -> 77.5 | I138: 38.75 | J138: 72.50
A139: 3153993205110 | B139: =VLOOKUP(A139,[1]Sheet3!$B$3:$G$145,2,FALSE) -> 云南省广播电视局昭通697台 | C139: =VLOOKUP(A139,[1]Sheet3!$B$3:$G$145,3,FALSE) -> 广播电视工程 | D139: =VLOOKUP(A139,[1]Sheet3!$B$3:$G$145,4,FALSE) -> 15399099157003002 | E139: =VLOOKUP(A139,[1]Sheet3!$B$3:$G$145,1,FALSE) -> 3153993205110 | F139: =VLOOKUP(A139,[2]Sheet1!$CE$2:$CS$1539,15,FALSE) -> 192.50 | G139: 32.08 | H139: =VLOOKUP(A139,[1]Sheet3!$B$3:$G$145,6,FALSE) -> 82.2 | I139: 41.10 | J139: 73.18
A140: 3153993204504 | B140: =VLOOKUP(A140,[1]Sheet3!$B$3:$G$145,2,FALSE) -> 云南省广播电视局昭通697台 | C140: =VLOOKUP(A140,[1]Sheet3!$B$3:$G$145,3,FALSE) -> 广播电视工程 | D140: =VLOOKUP(A140,[1]Sheet3!$B$3:$G$145,4,FALSE) -> 15399099157003002 | E140: =VLOOKUP(A140,[1]Sheet3!$B$3:$G$145,1,FALSE) -> 3153993204504 | F140: =VLOOKUP(A140,[2]Sheet1!$CE$2:$CS$1539,15,FALSE) -> 185.00 | G140: 30.83 | H140: =VLOOKUP(A140,[1]Sheet3!$B$3:$G$145,6,FALSE) -> 81.8 | I140: 40.90 | J140: 71.73
A141: 1153991501401 | B141: =VLOOKUP(A141,[1]Sheet3!$B$3:$G$145,2,FALSE) -> 云南省广播电视局镇康中波台 | C141: =VLOOKUP(A141,[1]Sheet3!$B$3:$G$145,3,FALSE) -> 文秘 | D141: =VLOOKUP(A141,[1]Sheet3!$B$3:$G$145,4,FALSE) -> 15399099157036001 | E141: =VLOOKUP(A141,[1]Sheet3!$B$3:$G$145,1,FALSE) -> 1153991501401 | F141: =VLOOKUP(A141,[2]Sheet1!$CE$2:$CS$1539,15,FALSE) -> 201.50 | G141: 33.58 | H141: =VLOOKUP(A141,[1]Sheet3!$B$3:$G$145,6,FALSE) -> 81 | I141: 40.50 | J141: 74.08
A142: 1153991501810 | B142: =VLOOKUP(A142,[1]Sheet3!$B$3:$G$145,2,FALSE) -> 云南省广播电视局镇康中波台 | C142: =VLOOKUP(A142,[1]Sheet3!$B$3:$G$145,3,FALSE) -> 文秘 | D142: =VLOOKUP(A142,[1]Sheet3!$B$3:$G$145,4,FALSE) -> 15399099157036001 | E142: =VLOOKUP(A142,[1]Sheet3!$B$3:$G$145,1,FALSE) -> 1153991501810 | F142: =VLOOKUP(A142,[2]Sheet1!$CE$2:$CS$1539,15,FALSE) -> 180.50 | G142: 30.08 | H142: =VLOOKUP(A142,[1]Sheet3!$B$3:$G$145,6,FALSE) -> 79.7 | I142: 39.85 | J142: 69.93
A143: 3153993205502 | B143: =VLOOKUP(A143,[1]Sheet3!$B$3:$G$145,2,FALSE) -> 云南省广播电视局镇康中波台 | C143: =VLOOKUP(A143,[1]Sheet3!$B$3:$G$145,3,FALSE) -> 广播电视工程 | D143: =VLOOKUP(A143,[1]Sheet3!$B$3:$G$145,4,FALSE) -> 15399099157036002 | E143: =VLOOKUP(A143,[1]Sheet3!$B$3:$G$145,1,FALSE) -> 3153993205502 | F143: =VLOOKUP(A143,[2]Sheet1!$CE$2:$CS$1539,15,FALSE) -> 177.00 | G143: 29.50 | H143: =VLOOKUP(A143,[1]Sheet3!$B$3:$G$145,6,FALSE) -> 81.8 | I143: 40.90 | J143: 70.40
A144: 3153993207406 | B144: =VLOOKUP(A144,[1]Sheet3!$B$3:$G$145,2,FALSE) -> 云南省广播电视局镇康中波台 | C144: =VLOOKUP(A144,[1]Sheet3!$B$3:$G$145,3,FALSE) -> 广播电视工程 | D144: =VLOOKUP(A144,[1]Sheet3!$B$3:$G$145,4,FALSE) -> 15399099157036002 | E144: =VLOOKUP(A144,[1]Sheet3!$B$3:$G$145,1,FALSE) -> 3153993207406 | F144: =VLOOKUP(A144,[2]Sheet1!$CE$2:$CS$1539,15,FALSE) -> 168.50 | G144: 28.08 | H144: =VLOOKUP(A144,[1]Sheet3!$B$3:$G$145,6,FALSE) -> 81 | I144: 40.50 | J144: 68.58
A145: 3153993204127 | B145: =VLOOKUP(A145,[1]Sheet3!$B$3:$G$145,2,FALSE) -> 云南省广播电视局镇康中波台 | C145: =VLOOKUP(A145,[1]Sheet3!$B$3:$G$145,3,FALSE) -> 广播电视工程 | D145: =VLOOKUP(A145,[1]Sheet3!$B$3:$G$145,4,FALSE) -> 15399099157036002 | E145: =VLOOKUP(A145,[1]Sheet3!$B$3:$G$145,1,FALSE) -> 3153993204127 | F145: =VLOOKUP(A145,[2]Sheet1!$CE$2:$CS$1539,15,FALSE) -> 201.00 | G145: 33.50 | H145: =VLOOKUP(A145,[1]Sheet3!$B$3:$G$145,6,FALSE) -> 80.6 | I145: 40.30 | J145: 73.80
